Workbook

Sheet A1.1 Distributor Information
C3: ="Name of LDC: " &D21 -> Name of LDC: EPCOR Natural Gas Limited Partnership
C4: ="OEB Application Number: " & D23 -> OEB Application Number: EB-2018-0235 Exhibit A - 2016 IRM Application Amended October 24, 2018
C11: Distributor Information
C21: Distributor Name | D21: EPCOR Natural Gas Limited Partnership
C23: OEB Application Number | D23: EB-2018-0235 Exhibit A - 2016 IRM Application Amended October 24, 2018
C30: =MID(CELL("filename",A1),FIND("]",CELL("filename",A1))+1,255) -> A1.1 Distributor Information

Sheet B1.1 Current Distribution Rates
C2: ='A1.1 Distributor Information'!C3 -> Name of LDC: EPCOR Natural Gas Limited Partnership
C3: ='A1.1 Distributor Information'!C4 -> OEB Application Number: EB-2018-0235 Exhibit A - 2016 IRM Application Amended October 24, 2018
C10: Current Distribution Tariff Sheet Rates
C15: Rate Group | E15: Monthly Service Charge | F15: Delivery First 1,000 m3 | G15: Delivery Over 1,000 m3 | H15: Delivery Next 24,000 m3 | I15: Delivery Over 25,000 m3 | J15: Delivery - Firm | K15: Demand - Firm | L15: Commodity | M15: Delivery - Int - Lower | N15: Delivery - Int - Upper
C16: RATE 1 - General Service Rate - Residential | E16: 13.5 | F16: 16.2312 | G16: 10.9099 | L16: 0.0363
C17: RATE 1 - General Service Rate - Commercial | E17: 13.5 | F17: 16.2312 | G17: 10.9099 | L17: 0.0363
C18: RATE 1 - General Service Rate - Industrial | E18: 13.5 | F18: 16.2312 | G18: 10.9099 | L18: 0.0363
C19: RATE 2 - Seasonal Service - Apr to Oct | E19: 15 | F19: 15.8212 | H19: 9.4826 | I19: 6.1698 | L19: 0.0363
C20: RATE 2 - Seasonal Service - Nov to Mar | E20: 15 | F20: 19.9424 | H20: 15.696 | I20: 15.2899 | L20: 0.0363
C21: RATE 3 - Special Large Volume Contract Rate | E21: 150 | J21: 4.0357 | K21: 29.0974 | L21: 0.0363 | M21: 7.9412 | N21: 10.9612
C22: RATE 4 - General Service Peaking - Apr to Dec | E22: 15 | F22: 15.8149 | G22: 10.5218 | L22: 0.0363
C23: RATE 4 - General Service Peaking - Jan to Mar | E23: 15 | F23: 20.1755 | G23: 16.9052 | L23: 0.0363
C24: RATE 5 - Interruptible Peaking Contract Rate | E24: 150 | J24: 7.1995 | K24: 1 | L24: 0.0363 | M24: 5.4612 | N24: 8.4612
C25: RATE 6 - Integrated Grain Processors Co-Operative Aylmer Ethanol Production Facility | E25: 150 | J25: 3.8894 | K25: 18.8392 | M25: 7.9412 | N25: 10.9612
C27: 1 Placeholder rate for average application
C34: =MID(CELL("filename",A1),FIND("]",CELL("filename",A1))+1,255) -> B1.1 Current Distribution Rates

Sheet B1.2 Billing Determinants
C2: ='A1.1 Distributor Information'!C3 -> Name of LDC: EPCOR Natural Gas Limited Partnership
C3: ='A1.1 Distributor Information'!C4 -> OEB Application Number: EB-2018-0235 Exhibit A - 2016 IRM Application Amended October 24, 2018
C10: Billing Determinants - Actuals October 1, 2016 to September 30, 2017
C15: Rate Group | E15: Monthly Service Charge | F15: Delivery First 1,000 m3 | G15: Delivery Over 1,000 m3 | H15: Delivery Next 24,000 m3 | I15: Delivery Over 25,000 m3 | J15: Delivery - Firm | K15: Demand - Firm | L15: Commodity | M15: Delivery - Int - Lower | N15: Delivery - Int - Upper
C16: RATE 1 - General Service Rate - Residential | E16: 8148 | F16: =L16-SUM(G16:K16) -> 13875993.48 | G16: =L16*(733800/13103581) -> 823151.5187 | L16: 14699145
C17: RATE 1 - General Service Rate - Commercial | E17: 462 | F17: =L17-SUM(G17:K17) -> 1843267.552 | G17: =L17*2371550/4131750 -> 2483468.448 | L17: 4326736
C18: RATE 1 - General Service Rate - Industrial | E18: 66 | F18: =L18-SUM(G18:K18) -> 338676.8268 | G18: =L18*466928/598028 -> 1206237.173 | L18: 1544914
C19: RATE 2 - Seasonal Service - Apr to Oct | E19: 53 | F19: =L19-SUM(G19:K19) -> 383293.9313 | H19: =$L19*(329621/453400) -> 1020704.069 | I19: 0 | L19: 1403998
C20: RATE 2 - Seasonal Service - Nov to Mar | E20: 53 | F20: =L20-SUM(G20:K20) -> 5767.236393 | H20: =$L20*(43772/49460) -> 44381.76361 | I20: 0 | L20: 50149
C21: RATE 3 - Special Large Volume Contract Rate | E21: 5 | J21: =1485572 -> 1485572 | K21: 224723 | L21: =J21 -> 1485572
C22: RATE 4 - General Service Peaking - Apr to Dec | E22: 36 | F22: =L22-SUM(G22:K22) -> 231194.9451 | G22: =L22*221214/436924 -> 237094.0549 | L22: 468289
C23: RATE 4 - General Service Peaking - Jan to Mar | E23: 36 | F23: =L23-SUM(G23:K23) -> 112019.6249 | G23: =L23*12970/17338 -> 332622.3751 | L23: 444642
C24: RATE 5 - Interruptible Peaking Contract Rate | E24: 4 | J24: 553894 | L24: =J24 -> 553894
C25: RATE 6 - Integrated Grain Processors Co-Operative Aylmer Ethanol Production Facility | E25: 1 | J25: 38423518 | K25: 1606140
E26: =SUM(E16:E19,E21:E22,E24:E25) -> 8775 | F26: =SUM(F16:F25) -> 16790213.6 | G26: 5082573.57 | H26: 1065085.832 | I26: 0 | J26: 40462984 | K26: 1830863 | L26: 24977339 | M26: =SUM(M16:M25) -> 0 | N26: =SUM(N16:N25) -> 0
C30: =MID(CELL("filename",A1),FIND("]",CELL("filename",A1))+1,255) -> B1.2 Billing Determinants

Sheet B1.3 Current Rev From Rates
C2: ='A1.1 Distributor Information'!C3 -> Name of LDC: EPCOR Natural Gas Limited Partnership
C3: ='A1.1 Distributor Information'!C4 -> OEB Application Number: EB-2018-0235 Exhibit A - 2016 IRM Application Amended October 24, 2018
C10: Revenue from Current Rates
C15: Rate Group | E15: Monthly Service Charge | F15: Delivery First 1,000 m3 | G15: Delivery Over 1,000 m3 | H15: Delivery Next 24,000 m3 | I15: Delivery Over 25,000 m3 | J15: Demand - Firm | K15: Delivery - Firm | L15: Commodity | M15: Delivery - Int - Lower | N15: Delivery - Int - Upper | O15: Total
C16: RATE 1 - General Service Rate - Residential | E16: ='B1.1 Current Distribution Rates'!E16*'B1.2 Billing Determinants'!E16*12 -> 1319976 | F16: ='B1.1 Current Distribution Rates'!F16*'B1.2 Billing Determinants'!F16/100 -> 2252240.254 | G16: ='B1.1 Current Distribution Rates'!G16*'B1.2 Billing Determinants'!G16/100 -> 89805.00754 | H16: ='B1.1 Current Distribution Rates'!H16*'B1.2 Billing Determinants'!H16/100 -> 0 | I16: ='B1.1 Current Distribution Rates'!I16*'B1.2 Billing Determinants'!I16/100 -> 0 | J16: ='B1.1 Current Distribution Rates'!J16*'B1.2 Billing Determinants'!J16/100 -> 0 | K16: ='B1.1 Current Distribution Rates'!K16*'B1.2 Billing Determinants'!K16/100 -> 0 | L16: ='B1.1 Current Distribution Rates'!L16*'B1.2 Billing Determinants'!L16/100 -> 5335.789635 | M16: ='B1.1 Current Distribution Rates'!M16*'B1.2 Billing Determinants'!M16/100 -> 0 | N16: ='B1.1 Current Distribution Rates'!N16*'B1.2 Billing Determinants'!N16/100 -> 0 | O16: =SUM(E16:N16) -> 3667357.051
C17: RATE 1 - General Service Rate - Commercial | E17: ='B1.1 Current Distribution Rates'!E17*'B1.2 Billing Determinants'!E17*12 -> 74844 | F17: ='B1.1 Current Distribution Rates'!F17*'B1.2 Billing Determinants'!F17/100 -> 299184.4429 | G17: ='B1.1 Current Distribution Rates'!G17*'B1.2 Billing Determinants'!G17/100 -> 270943.9242 | H17: ='B1.1 Current Distribution Rates'!H17*'B1.2 Billing Determinants'!H17/100 -> 0 | I17: ='B1.1 Current Distribution Rates'!I17*'B1.2 Billing Determinants'!I17/100 -> 0 | J17: ='B1.1 Current Distribution Rates'!J17*'B1.2 Billing Determinants'!J17/100 -> 0 | K17: ='B1.1 Current Distribution Rates'!K17*'B1.2 Billing Determinants'!K17/100 -> 0 | L17: ='B1.1 Current Distribution Rates'!L17*'B1.2 Billing Determinants'!L17/100 -> 1570.605168 | M17: ='B1.1 Current Distribution Rates'!M17*'B1.2 Billing Determinants'!M17/100 -> 0 | N17: ='B1.1 Current Distribution Rates'!N17*'B1.2 Billing Determinants'!N17/100 -> 0 | O17: =SUM(E17:N17) -> 646542.9723
C18: RATE 1 - General Service Rate - Industrial | E18: ='B1.1 Current Distribution Rates'!E18*'B1.2 Billing Determinants'!E18*12 -> 10692 | F18: ='B1.1 Current Distribution Rates'!F18*'B1.2 Billing Determinants'!F18/100 -> 54971.31312 | G18: ='B1.1 Current Distribution Rates'!G18*'B1.2 Billing Determinants'!G18/100 -> 131599.2694 | H18: ='B1.1 Current Distribution Rates'!H18*'B1.2 Billing Determinants'!H18/100 -> 0 | I18: ='B1.1 Current Distribution Rates'!I18*'B1.2 Billing Determinants'!I18/100 -> 0 | J18: ='B1.1 Current Distribution Rates'!J18*'B1.2 Billing Determinants'!J18/100 -> 0 | K18: ='B1.1 Current Distribution Rates'!K18*'B1.2 Billing Determinants'!K18/100 -> 0 | L18: ='B1.1 Current Distribution Rates'!L18*'B1.2 Billing Determinants'!L18/100 -> 560.803782 | M18: ='B1.1 Current Distribution Rates'!M18*'B1.2 Billing Determinants'!M18/100 -> 0 | N18: ='B1.1 Current Distribution Rates'!N18*'B1.2 Billing Determinants'!N18/100 -> 0 | O18: 197823.3863
C19: RATE 2 - Seasonal Service - Apr to Oct | E19: ='B1.1 Current Distribution Rates'!E19*'B1.2 Billing Determinants'!E19*7 -> 5565 | F19: ='B1.1 Current Distribution Rates'!F19*'B1.2 Billing Determinants'!F19/100 -> 60641.69946 | G19: ='B1.1 Current Distribution Rates'!G19*'B1.2 Billing Determinants'!G19/100 -> 0 | H19: ='B1.1 Current Distribution Rates'!H19*'B1.2 Billing Determinants'!H19/100 -> 96789.28402 | I19: ='B1.1 Current Distribution Rates'!I19*'B1.2 Billing Determinants'!I19/100 -> 0 | J19: ='B1.1 Current Distribution Rates'!J19*'B1.2 Billing Determinants'!J19/100 -> 0 | K19: ='B1.1 Current Distribution Rates'!K19*'B1.2 Billing Determinants'!K19/100 -> 0 | L19: ='B1.1 Current Distribution Rates'!L19*'B1.2 Billing Determinants'!L19/100 -> 509.651274 | M19: ='B1.1 Current Distribution Rates'!M19*'B1.2 Billing Determinants'!M19/100 -> 0 | N19: ='B1.1 Current Distribution Rates'!N19*'B1.2 Billing Determinants'!N19/100 -> 0 | O19: 163505.6348
C20: RATE 2 - Seasonal Service - Nov to Mar | E20: ='B1.1 Current Distribution Rates'!E20*'B1.2 Billing Determinants'!E20*5 -> 3975 | F20: ='B1.1 Current Distribution Rates'!F20*'B1.2 Billing Determinants'!F20/100 -> 1150.12535 | G20: ='B1.1 Current Distribution Rates'!G20*'B1.2 Billing Determinants'!G20/100 -> 0 | H20: ='B1.1 Current Distribution Rates'!H20*'B1.2 Billing Determinants'!H20/100 -> 6966.161616 | I20: ='B1.1 Current Distribution Rates'!I20*'B1.2 Billing Determinants'!I20/100 -> 0 | J20: ='B1.1 Current Distribution Rates'!J20*'B1.2 Billing Determinants'!J20/100 -> 0 | K20: ='B1.1 Current Distribution Rates'!K20*'B1.2 Billing Determinants'!K20/100 -> 0 | L20: ='B1.1 Current Distribution Rates'!L20*'B1.2 Billing Determinants'!L20/100 -> 18.204087 | M20: ='B1.1 Current Distribution Rates'!M20*'B1.2 Billing Determinants'!M20/100 -> 0 | N20: ='B1.1 Current Distribution Rates'!N20*'B1.2 Billing Determinants'!N20/100 -> 0 | O20: 12109.49105
C21: RATE 3 - Special Large Volume Contract Rate | E21: ='B1.1 Current Distribution Rates'!E21*'B1.2 Billing Determinants'!E21*12 -> 9000 | F21: ='B1.1 Current Distribution Rates'!F21*'B1.2 Billing Determinants'!F21/100 -> 0 | G21: ='B1.1 Current Distribution Rates'!G21*'B1.2 Billing Determinants'!G21/100 -> 0 | H21: ='B1.1 Current Distribution Rates'!H21*'B1.2 Billing Determinants'!H21/100 -> 0 | I21: ='B1.1 Current Distribution Rates'!I21*'B1.2 Billing Determinants'!I21/100 -> 0 | J21: ='B1.1 Current Distribution Rates'!J21*'B1.2 Billing Determinants'!J21/100 -> 59953.2292 | K21: ='B1.1 Current Distribution Rates'!K21*'B1.2 Billing Determinants'!K21/100 -> 65388.5502 | L21: ='B1.1 Current Distribution Rates'!L21*'B1.2 Billing Determinants'!L21/100 -> 539.262636 | M21: ='B1.1 Current Distribution Rates'!M21*'B1.2 Billing Determinants'!M21/100 -> 0 | N21: ='B1.1 Current Distribution Rates'!N21*'B1.2 Billing Determinants'!N21/100 -> 0 | O21: 134881.042
C22: RATE 4 - General Service Peaking - Apr to Dec | E22: ='B1.1 Current Distribution Rates'!E22*'B1.2 Billing Determinants'!E22*9 -> 4860 | F22: ='B1.1 Current Distribution Rates'!F22*'B1.2 Billing Determinants'!F22/100 -> 36563.24937 | G22: ='B1.1 Current Distribution Rates'!G22*'B1.2 Billing Determinants'!G22/100 -> 24946.56227 | H22: ='B1.1 Current Distribution Rates'!H22*'B1.2 Billing Determinants'!H22/100 -> 0 | I22: ='B1.1 Current Distribution Rates'!I22*'B1.2 Billing Determinants'!I22/100 -> 0 | J22: ='B1.1 Current Distribution Rates'!J22*'B1.2 Billing Determinants'!J22/100 -> 0 | K22: ='B1.1 Current Distribution Rates'!K22*'B1.2 Billing Determinants'!K22/100 -> 0 | L22: ='B1.1 Current Distribution Rates'!L22*'B1.2 Billing Determinants'!L22/100 -> 169.988907 | M22: ='B1.1 Current Distribution Rates'!M22*'B1.2 Billing Determinants'!M22/100 -> 0 | N22: ='B1.1 Current Distribution Rates'!N22*'B1.2 Billing Determinants'!N22/100 -> 0 | O22: 66539.80055
C23: RATE 4 - General Service Peaking - Jan to Mar | E23: ='B1.1 Current Distribution Rates'!E23*'B1.2 Billing Determinants'!E23*3 -> 1620 | F23: ='B1.1 Current Distribution Rates'!F23*'B1.2 Billing Determinants'!F23/100 -> 22600.51942 | G23: ='B1.1 Current Distribution Rates'!G23*'B1.2 Billing Determinants'!G23/100 -> 56230.47776 | H23: ='B1.1 Current Distribution Rates'!H23*'B1.2 Billing Determinants'!H23/100 -> 0 | I23: ='B1.1 Current Distribution Rates'!I23*'B1.2 Billing Determinants'!I23/100 -> 0 | J23: ='B1.1 Current Distribution Rates'!J23*'B1.2 Billing Determinants'!J23/100 -> 0 | K23: ='B1.1 Current Distribution Rates'!K23*'B1.2 Billing Determinants'!K23/100 -> 0 | L23: ='B1.1 Current Distribution Rates'!L23*'B1.2 Billing Determinants'!L23/100 -> 161.405046 | M23: ='B1.1 Current Distribution Rates'!M23*'B1.2 Billing Determinants'!M23/100 -> 0 | N23: ='B1.1 Current Distribution Rates'!N23*'B1.2 Billing Determinants'!N23/100 -> 0 | O23: 80612.40222
C24: RATE 5 - Interruptible Peaking Contract Rate | E24: ='B1.1 Current Distribution Rates'!E24*'B1.2 Billing Determinants'!E24*12 -> 7200 | F24: ='B1.1 Current Distribution Rates'!F24*'B1.2 Billing Determinants'!F24/100 -> 0 | G24: ='B1.1 Current Distribution Rates'!G24*'B1.2 Billing Determinants'!G24/100 -> 0 | H24: ='B1.1 Current Distribution Rates'!H24*'B1.2 Billing Determinants'!H24/100 -> 0 | I24: ='B1.1 Current Distribution Rates'!I24*'B1.2 Billing Determinants'!I24/100 -> 0 | J24: ='B1.1 Current Distribution Rates'!J24*'B1.2 Billing Determinants'!J24/100 -> 39877.59853 | K24: ='B1.1 Current Distribution Rates'!K24*'B1.2 Billing Determinants'!K24/100 -> 0 | L24: ='B1.1 Current Distribution Rates'!L24*'B1.2 Billing Determinants'!L24/100 -> 201.063522 | M24: ='B1.1 Current Distribution Rates'!M24*'B1.2 Billing Determinants'!M24/100 -> 0 | N24: ='B1.1 Current Distribution Rates'!N24*'B1.2 Billing Determinants'!N24/100 -> 0 | O24: 47278.66205
C25: RATE 6 - Integrated Grain Processors Co-Operative Aylmer Ethanol Production Facility | E25: ='B1.1 Current Distribution Rates'!E25*'B1.2 Billing Determinants'!E25*12 -> 1800 | F25: ='B1.1 Current Distribution Rates'!F25*'B1.2 Billing Determinants'!F25/100 -> 0 | G25: ='B1.1 Current Distribution Rates'!G25*'B1.2 Billing Determinants'!G25/100 -> 0 | H25: ='B1.1 Current Distribution Rates'!H25*'B1.2 Billing Determinants'!H25/100 -> 0 | I25: ='B1.1 Current Distribution Rates'!I25*'B1.2 Billing Determinants'!I25/100 -> 0 | J25: ='B1.1 Current Distribution Rates'!J25*'B1.2 Billing Determinants'!J25/100 -> 1494444.309 | K25: ='B1.1 Current Distribution Rates'!K25*'B1.2 Billing Determinants'!K25/100 -> 302583.9269 | L25: ='B1.1 Current Distribution Rates'!L25*'B1.2 Billing Determinants'!L25/100 -> 0 | M25: ='B1.1 Current Distribution Rates'!M25*'B1.2 Billing Determinants'!M25/100 -> 0 | N25: ='B1.1 Current Distribution Rates'!N25*'B1.2 Billing Determinants'!N25/100 -> 0 | O25: 1798828.236
E26: =SUM(E16:E25) -> 1439532 | F26: =SUM(F16:F25) -> 2727351.604 | G26: 573525.2412 | H26: 103755.4456 | I26: 0 | J26: 1594275.137 | K26: 367972.4771 | L26: 9066.774057 | M26: 0 | N26: 0 | O26: 6815478.678
C29: =MID(CELL("filename",A1),FIND("]",CELL("filename",A1))+1,255) -> B1.3 Current Rev From Rates

Sheet C1.1 Current Rate Riders
C2: ='A1.1 Distributor Information'!C3 -> Name of LDC: EPCOR Natural Gas Limited Partnership
C3: ='A1.1 Distributor Information'!C4 -> OEB Application Number: EB-2018-0235 Exhibit A - 2016 IRM Application Amended October 24, 2018
C10: Current Rate Riders
C12: Description | E12: Shared Tax Changes
C13: Effective Until | E13: September 30, 2016
E14: per customer per month assuming all months
C15: Rate Group
C16: RATE 1 - General Service Rate - Residential | E16: 0.13
C17: RATE 1 - General Service Rate - Commercial | E17: 0.13
C18: RATE 1 - General Service Rate - Industrial | E18: 0.13
C19: RATE 2 - Seasonal Service - Apr to Oct | E19: 0.24
C20: RATE 2 - Seasonal Service - Nov to Mar | E20: 0.24
C21: RATE 3 - Special Large Volume Contract Rate | E21: 10.53
C22: RATE 4 - General Service Peaking - Apr to Dec | E22: 0.69
C23: RATE 4 - General Service Peaking - Jan to Mar | E23: 0.69
C24: RATE 5 - Interruptible Peaking Contract Rate | E24: 3.81
C25: RATE 6 - Integrated Grain Processors Co-Operative Aylmer Ethanol Production Facility | E25: 380.13
C29: =MID(CELL("filename",A1),FIND("]",CELL("filename",A1))+1,255) -> C1.1 Current Rate Riders

Sheet C2.1 Regulatory Cost Adjustment (hidden)
C1: ='A1.1 Distributor Information'!#REF! -> 
C2: ='A1.1 Distributor Information'!C3 -> Name of LDC: EPCOR Natural Gas Limited Partnership
C3: ='A1.1 Distributor Information'!C4 -> OEB Application Number: EB-2018-0235 Exhibit A - 2016 IRM Application Amended October 24, 2018
C8: Regulatory Cost Adjustment
C9: Annual Regulatory Adjustment
C10: 22800 | D10: for 3 years | E10: =C10*3 -> 68400 | F10: Total to be collected
C11: A | E11: B= A * 3
C13: =E10 -> 68400 | D13: recovered over 33 months | E13: =C13/33 -> 2072.727273 | F13: per month
C14: B | E14: C = B / 33
C16: =E13 -> 2072.727273 | D16: Monthly charge annualized 12 months | E16: =C16*12 -> 24872.72727 | F16: Adjusted Regulatory Adjustment Value
C17: C | E17: D = C * 12
C19: Proposed recovery
C20: =E16 -> 24872.72727 | D20: Recovered over 9 months | E20: =C20/12*9 -> 18654.54545 | F20: Recovered in 2011/2012
C21: =C20 -> 24872.72727 | D21: Recovered over 12 months | E21: =C21 -> 24872.72727 | F21: Recovered in 2012/2013
C22: =C21 -> 24872.72727 | D22: Recovered over 12 months | E22: =C22 -> 24872.72727 | F22: Recovered in 2013/2014
E23: =SUM(E20:E22) -> 68400

Sheet C2.2 Alloc Reg Cost Adj (hidden)
C2: ='A1.1 Distributor Information'!C3 -> Name of LDC: EPCOR Natural Gas Limited Partnership
C3: ='A1.1 Distributor Information'!C4 -> OEB Application Number: EB-2018-0235 Exhibit A - 2016 IRM Application Amended October 24, 2018
C10: Allocation of Regualtory Cost Adjustment
C15: Rate Group | E15: Revenue By Rate Class | G15: Proportionate Revenue | I15: Regulatory Cost Adjustment | K15: Number of Customers | M15: Number of Months | O15: Fixed Rate Adjustment
C16: RATE 1 - General Service Rate | E16: =SUM('B1.3 Current Rev From Rates'!O16:O18) -> 4511723.41 | G16: =E16/$E$22 -> 0.6619818831 | I16: =$I$22*G16 -> 16465.29484 | K16: =SUM('B1.2 Billing Determinants'!E16:E18) -> 8676 | M16: 12 | O16: =I16/K16/M16 -> 0.1581498275
C17: RATE 2 - Seasonal Service | E17: =SUM('B1.3 Current Rev From Rates'!O19:O20) -> 175615.1258 | G17: 0.02576710076 | I17: 640.8980697 | K17: ='B1.2 Billing Determinants'!E19 -> 53 | M17: 12 | O17: =I17/K17/M17 -> 1.007701367
C18: RATE 3 - Special Large Volume Contract Rate | E18: ='B1.3 Current Rev From Rates'!O21 -> 134881.042 | G18: 0.01979039894 | I18: 492.2411956 | K18: ='B1.2 Billing Determinants'!E21 -> 5 | M18: 12 | O18: 8.204019926
C19: RATE 4 - General Service Peaking | E19: =SUM('B1.3 Current Rev From Rates'!O22:O23) -> 147152.2028 | G19: 0.02159088301 | I19: 537.0241446 | K19: ='B1.2 Billing Determinants'!E22 -> 36 | M19: 12 | O19: 1.243111446
C20: RATE 5 - Interruptible Peaking Contract Rate | E20: ='B1.3 Current Rev From Rates'!O24 -> 47278.66205 | G20: 0.006936953996 | I20: 172.5409648 | K20: ='B1.2 Billing Determinants'!E24 -> 4 | M20: 12 | O20: 3.594603434
C21: RATE 6 - Integrated Grain Processors Co-Operative Aylmer Ethanol Production Facility | E21: ='B1.3 Current Rev From Rates'!O25 -> 1798828.236 | G21: 0.2639327802 | I21: 6564.72806 | K21: ='B1.2 Billing Determinants'!E25 -> 1 | M21: 12 | O21: 547.0606717
E22: =SUM(E16:E21) -> 6815478.678 | G22: =SUM(G16:G21) -> 1 | I22: ='C2.1 Regulatory Cost Adjustment'!E16 -> 24872.72727 | K22: =SUM(K16:K21) -> 8775
C26: =MID(CELL("filename",A1),FIND("]",CELL("filename",A1))+1,255) -> C2.2 Alloc Reg Cost Adj

Sheet C2.3 Adj Monthly Service Chg (hidden)
C1: ='A1.1 Distributor Information'!#REF! -> 
C2: ='A1.1 Distributor Information'!C3 -> Name of LDC: EPCOR Natural Gas Limited Partnership
C3: ='A1.1 Distributor Information'!C4 -> OEB Application Number: EB-2018-0235 Exhibit A - 2016 IRM Application Amended October 24, 2018
C10: Adjustment to Monthly Service Charge
C15: Rate Group | E15: Current Monthly Service Charge | G15: Reulatory Cost Adjustment | I15: Adjusted Monthly Service Charge
C16: RATE 1 - General Service Rate - Residential | E16: 13.5 | G16: 0 | I16: =E16+G16 -> 13.5
C17: RATE 1 - General Service Rate - Commercial | E17: 13.5 | G17: 0 | I17: =E17+G17 -> 13.5
C18: RATE 1 - General Service Rate - Industrial | E18: 13.5 | G18: 0 | I18: 13.5
C19: RATE 2 - Seasonal Service - Apr to Oct | E19: 15 | G19: 0 | I19: 15
C20: RATE 2 - Seasonal Service - Nov to Mar | E20: 15 | G20: 0 | I20: 15
C21: RATE 3 - Special Large Volume Contract Rate | E21: 150 | G21: 0 | I21: 150
C22: RATE 4 - General Service Peaking - Apr to Dec | E22: 15 | G22: 0 | I22: 15
C23: RATE 4 - General Service Peaking - Jan to Mar | E23: 15 | G23: 0 | I23: 15
C24: RATE 5 - Interruptible Peaking Contract Rate | E24: 150 | G24: 0 | I24: 150
C25: RATE 6 - Integrated Grain Processors Co-Operative Aylmer Ethanol Production Facility | E25: 150 | G25: 0 | I25: 150
C28: 1 Placeholder rate for average application

Sheet D1.1 Rate 1 Adjustment
C2: ='A1.1 Distributor Information'!C3 -> Name of LDC: EPCOR Natural Gas Limited Partnership
C3: ='A1.1 Distributor Information'!C4 -> OEB Application Number: EB-2018-0235 Exhibit A - 2016 IRM Application Amended October 24, 2018
C8: Rate 1 Price Cap Adjustment
C11: GDP-IPI | E11: =E24 -> 0.021
C12: Less Productivity | E12: 0
C13: Less Stretch Factor | E13: =I27 -> 0.004
C14: Price Cap Adjustment | E14: =E11-E12-E13 -> 0.017
E16: Current Rate | F16: Price Cap | G16: Adjusted Rates | H16: Billing Determinants | I16: Revenue | K16: Balanced Rates | L16: Revenue
C17: Monthly Service Charge | E17: ='C2.3 Adj Monthly Service Chg'!I16 -> 13.5 | F17: =E14 -> 0.017 | G17: =E17*(1+F17) -> 13.7295 | H17: =SUM('B1.2 Billing Determinants'!E16:E18) -> 8676 | I17: =G17*H17*12 -> 1429405.704 | J17: No Change | K17: =E17+H11 -> 13.5 | L17: =H17*K17*12 -> 1405512
C18: Delivery First 1,000 m3 | E18: ='B1.1 Current Distribution Rates'!F16 -> 16.2312 | F18: =E14 -> 0.017 | G18: =E18*(1+F18) -> 16.5071304 | H18: =SUM('B1.2 Billing Determinants'!F16:F18) -> 16057937.86 | I18: =G18*H18/100 -> 2650704.742 | J18: Re-Balance | K18: =L18/H18*100 -> 16.65671777 | L18: =($I$21-SUM($L$17,$L$20,$L$19)) -> 2674725.388
C19: Delivery Over 1,000 m3 | E19: ='B1.1 Current Distribution Rates'!G16 -> 10.9099 | F19: =E14 -> 0.017 | G19: 11.0953683 | H19: =SUM('B1.2 Billing Determinants'!G16:G18) -> 4512857.14 | I19: =G19*H19/100 -> 500718.1205 | J19: Change | K19: =G19 -> 11.0953683 | L19: =H19*K19/100 -> 500718.1205
C20: Commodity | E20: ='B1.1 Current Distribution Rates'!L16 -> 0.0363 | F20: =E14 -> 0.017 | G20: 0.0369171 | H20: =SUM('B1.2 Billing Determinants'!L16:L18) -> 20570795 | I20: 7594.140961 | J20: No Change | K20: =E20 -> 0.0363 | L20: =H20*K20/100 -> 7467.198585
I21: =SUM(I17:I20) -> 4588422.708 | L21: =SUM(L17:L20) -> 4588422.708
C23: Data from 2014 IRM Rate Generator for Electric LDC. | L23: =I21-L21 -> 0
C24: Price Escalator | E24: 0.021 | F24: Choose Stretch Factor Group | I24: III | J24: Mid Group
C25: Productivity Factor | E25: 0 | F25: Associated Stretch Factor Value | I25: 0.003
C26: Price Cap Index | E26: =E24-E25-I27 -> 0.017 | F26: Settlement Agreement Adjustment | I26: 0.001
F27: Total Stretch Factor | I27: =SUM(I25:I26) -> 0.004
C30: =MID(CELL("filename",A1),FIND("]",CELL("filename",A1))+1,255) -> D1.1 Rate 1 Adjustment

Sheet D1.2 Rate 2 Adjustment
C2: ='A1.1 Distributor Information'!C3 -> Name of LDC: EPCOR Natural Gas Limited Partnership
C3: ='A1.1 Distributor Information'!C4 -> OEB Application Number: EB-2018-0235 Exhibit A - 2016 IRM Application Amended October 24, 2018
C8: Rate 2 Price Cap Adjustment
C11: GDP-IPI | E11: ='D1.1 Rate 1 Adjustment'!E11 -> 0.021
C12: Less Productivity | E12: ='D1.1 Rate 1 Adjustment'!E12 -> 0
C13: Less Stretch Factor | E13: ='D1.1 Rate 1 Adjustment'!E13 -> 0.004
C14: Price Cap Adjustment | E14: =E11-E12-E13 -> 0.017
E16: Current Rate | F16: Price Cap | G16: Adjusted Rates | H16: Billing Determinants | I16: Revenue | K16: Balanced Rates | L16: Revenue
C17: Monthly Service Charge | E17: ='C2.3 Adj Monthly Service Chg'!I19 -> 15 | F17: =$E$14 -> 0.017 | G17: =E17*(1+F17) -> 15.255 | H17: ='B1.2 Billing Determinants'!E19 -> 53 | I17: =G17*H17*12 -> 9702.18 | J17: No Change | K17: =E17+H11 -> 15 | L17: =H17*K17*12 -> 9540
C18: Delivery First 1,000 m3 - Apr To Oct | E18: ='B1.1 Current Distribution Rates'!F19 -> 15.8212 | F18: =$E$14 -> 0.017 | G18: =E18*(1+F18) -> 16.0901604 | H18: ='B1.2 Billing Determinants'!F19 -> 383293.9313 | I18: =G18*H18/100 -> 61672.60835 | J18: Re-Balance | K18: =L18/H18*100 -> 16.58559747 | L18: =(I18/($I$18+$I$21))*(I25-SUM(L17,L19:L20,L22:L24)) -> 63571.58856
C19: Delivery Next 24,000 m3 - Apr To Oct | E19: ='B1.1 Current Distribution Rates'!H19 -> 9.4826 | F19: 0.017 | G19: 9.6438042 | H19: ='B1.2 Billing Determinants'!H19 -> 1020704.069 | I19: =G19*H19/100 -> 98434.70185 | J19: No Change | K19: =E19 -> 9.4826 | L19: =H19*K19/100 -> 96789.28402
C20: Delivery Over 25,000 m3 - Apr To Oct | E20: ='B1.1 Current Distribution Rates'!I19 -> 6.1698 | F20: 0.017 | G20: 6.2746866 | H20: ='B1.2 Billing Determinants'!I19 -> 0 | I20: 0 | J20: No Change | K20: =E20 -> 6.1698 | L20: 0
C21: Delivery First 1,000 m3 - Nov To Mar | E21: ='B1.1 Current Distribution Rates'!F20 -> 19.9424 | F21: 0.017 | G21: 20.2814208 | H21: ='B1.2 Billing Determinants'!F20 -> 5767.236393 | I21: 1169.677481 | J21: Re-Balance | K21: =L21/H21*100 -> 20.90591225 | L21: =(I21/($I$18+$I$21))*(I25-SUM(L17,L19:L20,L22:L24)) -> 1205.69338
C22: Delivery Next 24,000 m3 - Nov To Mar | E22: ='B1.1 Current Distribution Rates'!H20 -> 15.696 | F22: 0.017 | G22: 15.962832 | H22: ='B1.2 Billing Determinants'!H20 -> 44381.76361 | I22: 7084.586363 | J22: No Change | K22: =E22 -> 15.696 | L22: =H22*K22/100 -> 6966.161616
C23: Delivery Over 25,000 m3 - Nov To Mar | E23: ='B1.1 Current Distribution Rates'!I20 -> 15.2899 | F23: 0.017 | G23: 15.5498283 | H23: ='B1.2 Billing Determinants'!I20 -> 0 | I23: 0 | J23: No Change | K23: =E23 -> 15.2899 | L23: 0
C24: Commodity | E24: ='B1.1 Current Distribution Rates'!L19 -> 0.0363 | F24: 0.017 | G24: 0.0369171 | H24: =SUM('B1.2 Billing Determinants'!L19:L20) -> 1454147 | I24: 536.8289021 | J24: No Change | K24: 0.0363 | L24: 527.855361
I25: =SUM(I17:I24) -> 178600.5829 | L25: =SUM(L17:L24) -> 178600.5829
L26: =I25-L25 -> 0
C31: =MID(CELL("filename",A1),FIND("]",CELL("filename",A1))+1,255) -> D1.2 Rate 2 Adjustment

Sheet D1.3 Rate 3 Adjustment
C2: ='A1.1 Distributor Information'!C3 -> Name of LDC: EPCOR Natural Gas Limited Partnership
C3: ='A1.1 Distributor Information'!C4 -> OEB Application Number: EB-2018-0235 Exhibit A - 2016 IRM Application Amended October 24, 2018
C8: Rate 3 Price Cap Adjustment
C11: GDP-IPI | E11: ='D1.1 Rate 1 Adjustment'!E11 -> 0.021
C12: Less Productivity | E12: ='D1.1 Rate 1 Adjustment'!E12 -> 0
C13: Less Stretch Factor | E13: ='D1.1 Rate 1 Adjustment'!E13 -> 0.004
C14: Price Cap Adjustment | E14: =E11-E12-E13 -> 0.017
E16: Current Rate | F16: Price Cap | G16: Adjusted Rates | H16: Billing Determinants | I16: Revenue | K16: Balanced Rates | L16: Revenue
C17: Monthly Service Charge | E17: ='C2.3 Adj Monthly Service Chg'!I21 -> 150 | F17: =E14 -> 0.017 | G17: =E17*(1+F17) -> 152.55 | H17: ='B1.2 Billing Determinants'!E21 -> 5 | I17: =G17*H17*12 -> 9153 | J17: No Change | K17: =E17+H11 -> 150 | L17: =H17*K17*12 -> 9000
C18: Delivery Firm | E18: ='B1.1 Current Distribution Rates'!J21 -> 4.0357 | F18: =E14 -> 0.017 | G18: =E18*(1+F18) -> 4.1043069 | H18: ='B1.2 Billing Determinants'!J21 -> 1485572 | I18: =G18*H18/100 -> 60972.4341 | J18: Re-Balance | K18: =L18/H18*100 -> 4.19004982 | L18: =I21-(L17+L19+L20) -> 62246.20692
C19: Demand Firm | E19: ='B1.1 Current Distribution Rates'!K21 -> 29.0974 | F19: =E14 -> 0.017 | G19: 29.5920558 | H19: ='B1.2 Billing Determinants'!K21 -> 224723 | I19: =G19*H19/100 -> 66500.15556 | J19: No Change | K19: 29.0974 | L19: =H19*K19/100 -> 65388.5502
C20: Commodity | E20: ='B1.1 Current Distribution Rates'!L21 -> 0.0363 | F20: =E14 -> 0.017 | G20: 0.0369171 | H20: ='B1.2 Billing Determinants'!L21 -> 1485572 | I20: 548.4301008 | J20: No Change | K20: =E20 -> 0.0363 | L20: =H20*K20/100 -> 539.262636
I21: =SUM(I17:I20) -> 137174.0198 | L21: =SUM(L17:L20) -> 137174.0198
L22: =I21-L21 -> 0
C26: =MID(CELL("filename",A1),FIND("]",CELL("filename",A1))+1,255) -> D1.3 Rate 3 Adjustment

Sheet D1.4 Rate 4 Adjustment
C2: ='A1.1 Distributor Information'!C3 -> Name of LDC: EPCOR Natural Gas Limited Partnership
C3: ='A1.1 Distributor Information'!C4 -> OEB Application Number: EB-2018-0235 Exhibit A - 2016 IRM Application Amended October 24, 2018
C8: Rate 4 Price Cap Adjustment
C11: GDP-IPI | E11: ='D1.1 Rate 1 Adjustment'!E11 -> 0.021
C12: Less Productivity | E12: ='D1.1 Rate 1 Adjustment'!E12 -> 0
C13: Less Stretch Factor | E13: ='D1.1 Rate 1 Adjustment'!E13 -> 0.004
C14: Price Cap Adjustment | E14: =E11-E12-E13 -> 0.017
E16: Current Rate | F16: Price Cap | G16: Adjusted Rates | H16: Billing Determinants | I16: Revenue | K16: Balanced Rates | L16: Revenue
C17: Monthly Service Charge | E17: ='C2.3 Adj Monthly Service Chg'!I22 -> 15 | F17: =$E$14 -> 0.017 | G17: =E17*(1+F17) -> 15.255 | H17: ='B1.2 Billing Determinants'!E22 -> 36 | I17: =G17*H17*12 -> 6590.16 | J17: No Change | K17: =E17+H11 -> 15 | L17: =H17*K17*12 -> 6480
C18: Delivery First 1,000 m3 - Apr To Dec | E18: ='B1.1 Current Distribution Rates'!F22 -> 15.8149 | F18: =$E$14 -> 0.017 | G18: =E18*(1+F18) -> 16.0837533 | H18: ='B1.2 Billing Determinants'!F22 -> 231194.9451 | I18: =G18*H18/100 -> 37184.82461 | J18: Re-Balance | K18: =L18/H18*100 -> 16.48359228 | L18: =(I18/($I$18+$I$20))*($I$23-SUM($L$17,$L$19,$L$21:$L$22)) -> 38109.23212
C19: Delivery Over 1,000 m3 - Apr To Dec | E19: ='B1.1 Current Distribution Rates'!G22 -> 10.5218 | F19: 0.017 | G19: 10.7006706 | H19: ='B1.2 Billing Determinants'!G22 -> 237094.0549 | I19: =G19*H19/100 -> 25370.65383 | J19: No Change | K19: 10.5218 | L19: =H19*K19/100 -> 24946.56227
C20: Delivery First 1,000 m3 - Jan To Mar | E20: ='B1.1 Current Distribution Rates'!F23 -> 20.1755 | F20: 0.017 | G20: 20.5184835 | H20: ='B1.2 Billing Determinants'!F23 -> 112019.6249 | I20: 22984.72825 | J20: Re-Balance | K20: =L20/H20*100 -> 21.02856901 | L20: =(I20/($I$18+$I$20))*($I$23-SUM($L$17,$L$19,$L$21:$L$22)) -> 23556.12412
C21: Delivery Over 1,000 m3 - Jan To Mar | E21: ='B1.1 Current Distribution Rates'!G23 -> 16.9052 | F21: 0.017 | G21: 17.1925884 | H21: ='B1.2 Billing Determinants'!G23 -> 332622.3751 | I21: 57186.39588 | J21: No Change | K21: 16.9052 | L21: =H21*K21/100 -> 56230.47776
C22: Commodity | E22: ='B1.1 Current Distribution Rates'!L22 -> 0.0363 | F22: 0.017 | G22: 0.0369171 | H22: =SUM('B1.2 Billing Determinants'!L22:L23) -> 912931 | I22: 337.0276502 | J22: No Change | K22: =E22 -> 0.0363 | L22: 331.393953
I23: =SUM(I17:I22) -> 149653.7902 | L23: =SUM(L17:L22) -> 149653.7902
L24: =I23-L23 -> 0
C28: =MID(CELL("filename",A1),FIND("]",CELL("filename",A1))+1,255) -> D1.4 Rate 4 Adjustment

Sheet D1.5 Rate 5 Adjustment
C2: ='A1.1 Distributor Information'!C3 -> Name of LDC: EPCOR Natural Gas Limited Partnership
C3: ='A1.1 Distributor Information'!C4 -> OEB Application Number: EB-2018-0235 Exhibit A - 2016 IRM Application Amended October 24, 2018
C8: Rate 5 Price Cap Adjustment
C11: GDP-IPI | E11: ='D1.1 Rate 1 Adjustment'!E11 -> 0.021
C12: Less Productivity | E12: ='D1.1 Rate 1 Adjustment'!E12 -> 0
C13: Less Stretch Factor | E13: ='D1.1 Rate 1 Adjustment'!E13 -> 0.004
C14: Price Cap Adjustment | E14: =E11-E12-E13 -> 0.017
E16: Current Rate | F16: Price Cap | G16: Adjusted Rates | H16: Billing Determinants | I16: Revenue | K16: Balanced Rates | L16: Revenue
C17: Monthly Service Charge | E17: ='C2.3 Adj Monthly Service Chg'!I24 -> 150 | F17: =E14 -> 0.017 | G17: =E17*(1+F17) -> 152.55 | H17: ='B1.2 Billing Determinants'!E24 -> 4 | I17: =G17*H17*12 -> 7322.4 | J17: No Change | K17: =E17+H11 -> 150 | L17: =H17*K17*12 -> 7200
C18: Delivery Firm | E18: ='B1.1 Current Distribution Rates'!J24 -> 7.1995 | F18: =E14 -> 0.017 | G18: =E18*(1+F18) -> 7.3218915 | H18: ='B1.2 Billing Determinants'!J24 -> 553894 | I18: =G18*H18/100 -> 40555.51771 | J18: Re-Balance | K18: =L18/H18*100 -> 7.344606691 | L18: =I20-L17-L19 -> 40681.33578
C19: Commodity | E19: ='B1.1 Current Distribution Rates'!L24 -> 0.0363 | F19: =E14 -> 0.017 | G19: 0.0369171 | H19: ='B1.2 Billing Determinants'!L24 -> 553894 | I19: =G19*H19/100 -> 204.4816019 | J19: No Change | K19: =E19 -> 0.0363 | L19: =H19*K19/100 -> 201.063522
I20: =SUM(I17:I19) -> 48082.39931 | L20: =SUM(L17:L19) -> 48082.39931
L21: =I20-L20 -> 0
C26: =MID(CELL("filename",A1),FIND("]",CELL("filename",A1))+1,255) -> D1.5 Rate 5 Adjustment

Sheet D1.6 Rate 6 Adjustment
C2: ='A1.1 Distributor Information'!C3 -> Name of LDC: EPCOR Natural Gas Limited Partnership
C3: ='A1.1 Distributor Information'!C4 -> OEB Application Number: EB-2018-0235 Exhibit A - 2016 IRM Application Amended October 24, 2018
C8: Rate 6 Price Cap Adjustment
C11: GDP-IPI | E11: ='D1.1 Rate 1 Adjustment'!E11 -> 0.021
C12: Less Productivity | E12: ='D1.1 Rate 1 Adjustment'!E12 -> 0
C13: Less Stretch Factor | E13: ='D1.1 Rate 1 Adjustment'!E13 -> 0.004
C14: Price Cap Adjustment | E14: =E11-E12-E13 -> 0.017
E16: Current Rate | F16: Price Cap | G16: Adjusted Rates | H16: Billing Determinants | I16: Revenue | K16: Balanced Rates | L16: Revenue
C17: Monthly Service Charge | E17: ='C2.3 Adj Monthly Service Chg'!I25 -> 150 | F17: =E14 -> 0.017 | G17: =E17*(1+F17) -> 152.55 | H17: ='B1.2 Billing Determinants'!E25 -> 1 | I17: =G17*H17*12 -> 1830.6 | J17: No Change | K17: =E17+H11 -> 150 | L17: =H17*K17*12 -> 1800
C18: Delivery Firm | E18: ='B1.1 Current Distribution Rates'!J25 -> 3.8894 | F18: =E14 -> 0.017 | G18: =E18*(1+F18) -> 3.9555198 | H18: ='B1.2 Billing Determinants'!J25 -> 38423518 | I18: =G18*H18/100 -> 1519849.862 | J18: Re-Balance | K18: =L18/H18*100 -> 3.955599439 | L18: =I20-(L17+L19) -> 1519880.462
C19: Demand Firm | E19: ='B1.1 Current Distribution Rates'!K25 -> 18.8392 | F19: =E14 -> 0.017 | G19: 19.1594664 | H19: ='B1.2 Billing Determinants'!K25 -> 1606140 | I19: =G19*H19/100 -> 307727.8536 | J19: Change | K19: =G19 -> 19.1594664 | L19: =H19*K19/100 -> 307727.8536
I20: =SUM(I17:I19) -> 1829408.316 | L20: =SUM(L17:L19) -> 1829408.316
L21: =I20-L20 -> 0
C24: =MID(CELL("filename",A1),FIND("]",CELL("filename",A1))+1,255) -> D1.6 Rate 6 Adjustment

Sheet E1.1 Proposed Dist Rates
C2: ='A1.1 Distributor Information'!C3 -> Name of LDC: EPCOR Natural Gas Limited Partnership
C3: ='A1.1 Distributor Information'!C4 -> OEB Application Number: EB-2018-0235 Exhibit A - 2016 IRM Application Amended October 24, 2018
C10: Proposed Distribution Tariff Sheet Rates
C15: Rate Group | E15: Monthly Service Charge | F15: Delivery First 1,000 m3 | G15: Delivery Over 1,000 m3 | H15: Delivery Next 24,000 m3 | I15: Delivery Over 25,000 m3 | J15: Delivery - Firm | K15: Demand - Firm | L15: Commodity | M15: Delivery - Int - Lower | N15: Delivery - Int - Upper
C16: RATE 1 - General Service Rate - Residential | E16: ='D1.1 Rate 1 Adjustment'!K17 -> 13.5 | F16: ='D1.1 Rate 1 Adjustment'!K18 -> 16.65671777 | G16: ='D1.1 Rate 1 Adjustment'!K19 -> 11.0953683 | L16: ='D1.1 Rate 1 Adjustment'!K20 -> 0.0363
C17: RATE 1 - General Service Rate - Commercial | E17: ='D1.1 Rate 1 Adjustment'!K17 -> 13.5 | F17: ='D1.1 Rate 1 Adjustment'!K18 -> 16.65671777 | G17: ='D1.1 Rate 1 Adjustment'!K19 -> 11.0953683 | L17: ='D1.1 Rate 1 Adjustment'!K20 -> 0.0363
C18: RATE 1 - General Service Rate - Industrial | E18: ='D1.1 Rate 1 Adjustment'!K17 -> 13.5 | F18: ='D1.1 Rate 1 Adjustment'!K18 -> 16.65671777 | G18: ='D1.1 Rate 1 Adjustment'!K19 -> 11.0953683 | L18: ='D1.1 Rate 1 Adjustment'!K20 -> 0.0363
C19: RATE 2 - Seasonal Service - Apr to Oct | E19: ='D1.2 Rate 2 Adjustment'!K17 -> 15 | F19: ='D1.2 Rate 2 Adjustment'!K18 -> 16.58559747 | H19: ='D1.2 Rate 2 Adjustment'!K19 -> 9.4826 | I19: ='D1.2 Rate 2 Adjustment'!K20 -> 6.1698 | L19: ='D1.2 Rate 2 Adjustment'!K24 -> 0.0363
C20: RATE 2 - Seasonal Service - Nov to Mar | E20: ='D1.2 Rate 2 Adjustment'!K17 -> 15 | F20: ='D1.2 Rate 2 Adjustment'!K21 -> 20.90591225 | H20: ='D1.2 Rate 2 Adjustment'!K22 -> 15.696 | I20: ='D1.2 Rate 2 Adjustment'!K23 -> 15.2899 | L20: ='D1.2 Rate 2 Adjustment'!K24 -> 0.0363
C21: RATE 3 - Special Large Volume Contract Rate | E21: ='D1.3 Rate 3 Adjustment'!K17 -> 150 | J21: ='D1.3 Rate 3 Adjustment'!K18 -> 4.19004982 | K21: ='D1.3 Rate 3 Adjustment'!K19 -> 29.0974 | L21: ='D1.3 Rate 3 Adjustment'!K20 -> 0.0363 | M21: ='B1.1 Current Distribution Rates'!M21 -> 7.9412 | N21: ='B1.1 Current Distribution Rates'!N21 -> 10.9612
C22: RATE 4 - General Service Peaking - Apr to Dec | E22: ='D1.4 Rate 4 Adjustment'!K17 -> 15 | F22: ='D1.4 Rate 4 Adjustment'!K18 -> 16.48359228 | G22: ='D1.4 Rate 4 Adjustment'!K19 -> 10.5218 | L22: ='D1.4 Rate 4 Adjustment'!K22 -> 0.0363
C23: RATE 4 - General Service Peaking - Jan to Mar | E23: ='D1.4 Rate 4 Adjustment'!K17 -> 15 | F23: ='D1.4 Rate 4 Adjustment'!K20 -> 21.02856901 | G23: ='D1.4 Rate 4 Adjustment'!K21 -> 16.9052 | L23: ='D1.4 Rate 4 Adjustment'!K22 -> 0.0363
C24: RATE 5 - Interruptible Peaking Contract Rate | E24: ='D1.5 Rate 5 Adjustment'!K17 -> 150 | J24: ='D1.5 Rate 5 Adjustment'!K18 -> 7.344606691 | K24: 1 | L24: ='D1.5 Rate 5 Adjustment'!K19 -> 0.0363 | M24: ='B1.1 Current Distribution Rates'!M24 -> 5.4612 | N24: ='B1.1 Current Distribution Rates'!N24 -> 8.4612
C25: RATE 6 - Integrated Grain Processors Co-Operative Aylmer Ethanol Production Facility | E25: ='D1.6 Rate 6 Adjustment'!K17 -> 150 | J25: ='D1.6 Rate 6 Adjustment'!K18 -> 3.955599439 | K25: ='D1.6 Rate 6 Adjustment'!K19 -> 19.1594664 | M25: ='B1.1 Current Distribution Rates'!M25 -> 7.9412 | N25: ='B1.1 Current Distribution Rates'!N25 -> 10.9612
C27: 1 Placeholder rate for average application
C30: =MID(CELL("filename",A1),FIND("]",CELL("filename",A1))+1,255) -> E1.1 Proposed Dist Rates

Sheet E1.2 Billing Determinants
C2: ='A1.1 Distributor Information'!C3 -> Name of LDC: EPCOR Natural Gas Limited Partnership
C3: ='A1.1 Distributor Information'!C4 -> OEB Application Number: EB-2018-0235 Exhibit A - 2016 IRM Application Amended October 24, 2018
C10: Billing Determinants - Actuals October 1, 2016 to September 30, 2017
C15: Rate Group | E15: Monthly Service Charge | F15: Delivery First 1,000 m3 | G15: Delivery Over 1,000 m3 | H15: Delivery Next 24,000 m3 | I15: Delivery Over 25,000 m3 | J15: Delivery - Firm | K15: Demand - Firm | L15: Commodity | M15: Delivery - Int - Lower | N15: Delivery - Int - Upper
C16: RATE 1 - General Service Rate - Residential | E16: ='B1.2 Billing Determinants'!E16 -> 8148 | F16: ='B1.2 Billing Determinants'!F16 -> 13875993.48 | G16: ='B1.2 Billing Determinants'!G16 -> 823151.5187 | H16: ='B1.2 Billing Determinants'!H16 -> 0 | I16: ='B1.2 Billing Determinants'!I16 -> 0 | J16: ='B1.2 Billing Determinants'!J16 -> 0 | K16: ='B1.2 Billing Determinants'!K16 -> 0 | L16: ='B1.2 Billing Determinants'!L16 -> 14699145 | M16: ='B1.2 Billing Determinants'!M16 -> 0 | N16: ='B1.2 Billing Determinants'!N16 -> 0
C17: RATE 1 - General Service Rate - Commercial | E17: ='B1.2 Billing Determinants'!E17 -> 462 | F17: ='B1.2 Billing Determinants'!F17 -> 1843267.552 | G17: ='B1.2 Billing Determinants'!G17 -> 2483468.448 | H17: ='B1.2 Billing Determinants'!H17 -> 0 | I17: ='B1.2 Billing Determinants'!I17 -> 0 | J17: ='B1.2 Billing Determinants'!J17 -> 0 | K17: ='B1.2 Billing Determinants'!K17 -> 0 | L17: ='B1.2 Billing Determinants'!L17 -> 4326736 | M17: ='B1.2 Billing Determinants'!M17 -> 0 | N17: ='B1.2 Billing Determinants'!N17 -> 0
C18: RATE 1 - General Service Rate - Industrial | E18: ='B1.2 Billing Determinants'!E18 -> 66 | F18: ='B1.2 Billing Determinants'!F18 -> 338676.8268 | G18: ='B1.2 Billing Determinants'!G18 -> 1206237.173 | H18: ='B1.2 Billing Determinants'!H18 -> 0 | I18: ='B1.2 Billing Determinants'!I18 -> 0 | J18: ='B1.2 Billing Determinants'!J18 -> 0 | K18: ='B1.2 Billing Determinants'!K18 -> 0 | L18: ='B1.2 Billing Determinants'!L18 -> 1544914 | M18: ='B1.2 Billing Determinants'!M18 -> 0 | N18: ='B1.2 Billing Determinants'!N18 -> 0
C19: RATE 2 - Seasonal Service - Apr to Oct | E19: ='B1.2 Billing Determinants'!E19 -> 53 | F19: ='B1.2 Billing Determinants'!F19 -> 383293.9313 | G19: ='B1.2 Billing Determinants'!G19 -> 0 | H19: ='B1.2 Billing Determinants'!H19 -> 1020704.069 | I19: ='B1.2 Billing Determinants'!I19 -> 0 | J19: ='B1.2 Billing Determinants'!J19 -> 0 | K19: ='B1.2 Billing Determinants'!K19 -> 0 | L19: ='B1.2 Billing Determinants'!L19 -> 1403998 | M19: ='B1.2 Billing Determinants'!M19 -> 0 | N19: ='B1.2 Billing Determinants'!N19 -> 0
C20: RATE 2 - Seasonal Service - Nov to Mar | E20: ='B1.2 Billing Determinants'!E20 -> 53 | F20: ='B1.2 Billing Determinants'!F20 -> 5767.236393 | G20: ='B1.2 Billing Determinants'!G20 -> 0 | H20: ='B1.2 Billing Determinants'!H20 -> 44381.76361 | I20: ='B1.2 Billing Determinants'!I20 -> 0 | J20: ='B1.2 Billing Determinants'!J20 -> 0 | K20: ='B1.2 Billing Determinants'!K20 -> 0 | L20: ='B1.2 Billing Determinants'!L20 -> 50149 | M20: ='B1.2 Billing Determinants'!M20 -> 0 | N20: ='B1.2 Billing Determinants'!N20 -> 0
C21: RATE 3 - Special Large Volume Contract Rate | E21: ='B1.2 Billing Determinants'!E21 -> 5 | F21: ='B1.2 Billing Determinants'!F21 -> 0 | G21: ='B1.2 Billing Determinants'!G21 -> 0 | H21: ='B1.2 Billing Determinants'!H21 -> 0 | I21: ='B1.2 Billing Determinants'!I21 -> 0 | J21: ='B1.2 Billing Determinants'!J21 -> 1485572 | K21: ='B1.2 Billing Determinants'!K21 -> 224723 | L21: ='B1.2 Billing Determinants'!L21 -> 1485572 | M21: ='B1.2 Billing Determinants'!M21 -> 0 | N21: ='B1.2 Billing Determinants'!N21 -> 0
C22: RATE 4 - General Service Peaking - Apr to Dec | E22: ='B1.2 Billing Determinants'!E22 -> 36 | F22: ='B1.2 Billing Determinants'!F22 -> 231194.9451 | G22: ='B1.2 Billing Determinants'!G22 -> 237094.0549 | H22: ='B1.2 Billing Determinants'!H22 -> 0 | I22: ='B1.2 Billing Determinants'!I22 -> 0 | J22: ='B1.2 Billing Determinants'!J22 -> 0 | K22: ='B1.2 Billing Determinants'!K22 -> 0 | L22: ='B1.2 Billing Determinants'!L22 -> 468289 | M22: ='B1.2 Billing Determinants'!M22 -> 0 | N22: ='B1.2 Billing Determinants'!N22 -> 0
C23: RATE 4 - General Service Peaking - Jan to Mar | E23: ='B1.2 Billing Determinants'!E23 -> 36 | F23: ='B1.2 Billing Determinants'!F23 -> 112019.6249 | G23: ='B1.2 Billing Determinants'!G23 -> 332622.3751 | H23: ='B1.2 Billing Determinants'!H23 -> 0 | I23: ='B1.2 Billing Determinants'!I23 -> 0 | J23: ='B1.2 Billing Determinants'!J23 -> 0 | K23: ='B1.2 Billing Determinants'!K23 -> 0 | L23: ='B1.2 Billing Determinants'!L23 -> 444642 | M23: ='B1.2 Billing Determinants'!M23 -> 0 | N23: ='B1.2 Billing Determinants'!N23 -> 0
C24: RATE 5 - Interruptible Peaking Contract Rate | E24: ='B1.2 Billing Determinants'!E24 -> 4 | F24: ='B1.2 Billing Determinants'!F24 -> 0 | G24: ='B1.2 Billing Determinants'!G24 -> 0 | H24: ='B1.2 Billing Determinants'!H24 -> 0 | I24: ='B1.2 Billing Determinants'!I24 -> 0 | J24: ='B1.2 Billing Determinants'!J24 -> 553894 | K24: ='B1.2 Billing Determinants'!K24 -> 0 | L24: ='B1.2 Billing Determinants'!L24 -> 553894 | M24: ='B1.2 Billing Determinants'!M24 -> 0 | N24: ='B1.2 Billing Determinants'!N24 -> 0
C25: RATE 6 - Integrated Grain Processors Co-Operative Aylmer Ethanol Production Facility | E25: ='B1.2 Billing Determinants'!E25 -> 1 | F25: ='B1.2 Billing Determinants'!F25 -> 0 | G25: ='B1.2 Billing Determinants'!G25 -> 0 | H25: ='B1.2 Billing Determinants'!H25 -> 0 | I25: ='B1.2 Billing Determinants'!I25 -> 0 | J25: ='B1.2 Billing Determinants'!J25 -> 38423518 | K25: ='B1.2 Billing Determinants'!K25 -> 1606140 | L25: ='B1.2 Billing Determinants'!L25 -> 0 | M25: ='B1.2 Billing Determinants'!M25 -> 0 | N25: ='B1.2 Billing Determinants'!N25 -> 0
E26: =SUM(E16:E19,E21:E22,E24:E25) -> 8775 | F26: =SUM(F16:F25) -> 16790213.6 | G26: 5082573.57 | H26: 1065085.832 | I26: 0 | J26: 40462984 | K26: 1830863 | L26: 24977339 | M26: 0 | N26: 0
C30: =MID(CELL("filename",A1),FIND("]",CELL("filename",A1))+1,255) -> E1.2 Billing Determinants

Sheet E1.3 Proposed Rev From Rate
C2: ='A1.1 Distributor Information'!C3 -> Name of LDC: EPCOR Natural Gas Limited Partnership
C3: ='A1.1 Distributor Information'!C4 -> OEB Application Number: EB-2018-0235 Exhibit A - 2016 IRM Application Amended October 24, 2018
C10: Proposed Revenue from Rates
C15: Rate Group | E15: Monthly Service Charge | F15: Delivery First 1,000 m3 | G15: Delivery Over 1,000 m3 | H15: Delivery Next 24,000 m3 | I15: Delivery Over 25,000 m3 | J15: Demand - Firm | K15: Delivery - Firm | L15: Commodity | M15: Delivery - Int - Lower | N15: Delivery - Int - Upper | O15: Total
C16: RATE 1 - General Service Rate - Residential | E16: ='E1.1 Proposed Dist Rates '!E16*'E1.2 Billing Determinants'!E16*12 -> 1319976 | F16: ='E1.1 Proposed Dist Rates '!F16*'E1.2 Billing Determinants'!F16/100 -> 2311285.071 | G16: ='E1.1 Proposed Dist Rates '!G16*'E1.2 Billing Determinants'!G16/100 -> 91331.69267 | H16: ='E1.1 Proposed Dist Rates '!H16*'E1.2 Billing Determinants'!H16/100 -> 0 | I16: ='E1.1 Proposed Dist Rates '!I16*'E1.2 Billing Determinants'!I16/100 -> 0 | J16: ='E1.1 Proposed Dist Rates '!J16*'E1.2 Billing Determinants'!J16/100 -> 0 | K16: ='E1.1 Proposed Dist Rates '!K16*'E1.2 Billing Determinants'!K16/100 -> 0 | L16: ='E1.1 Proposed Dist Rates '!L16*'E1.2 Billing Determinants'!L16/100 -> 5335.789635 | M16: ='E1.1 Proposed Dist Rates '!M16*'E1.2 Billing Determinants'!M16/100 -> 0 | N16: ='E1.1 Proposed Dist Rates '!N16*'E1.2 Billing Determinants'!N16/100 -> 0 | O16: =SUM(E16:N16) -> 3727928.554
C17: RATE 1 - General Service Rate - Commercial | E17: ='E1.1 Proposed Dist Rates '!E17*'E1.2 Billing Determinants'!E17*12 -> 74844 | F17: ='E1.1 Proposed Dist Rates '!F17*'E1.2 Billing Determinants'!F17/100 -> 307027.8738 | G17: ='E1.1 Proposed Dist Rates '!G17*'E1.2 Billing Determinants'!G17/100 -> 275549.9709 | H17: ='E1.1 Proposed Dist Rates '!H17*'E1.2 Billing Determinants'!H17/100 -> 0 | I17: ='E1.1 Proposed Dist Rates '!I17*'E1.2 Billing Determinants'!I17/100 -> 0 | J17: ='E1.1 Proposed Dist Rates '!J17*'E1.2 Billing Determinants'!J17/100 -> 0 | K17: ='E1.1 Proposed Dist Rates '!K17*'E1.2 Billing Determinants'!K17/100 -> 0 | L17: ='E1.1 Proposed Dist Rates '!L17*'E1.2 Billing Determinants'!L17/100 -> 1570.605168 | M17: ='E1.1 Proposed Dist Rates '!M17*'E1.2 Billing Determinants'!M17/100 -> 0 | N17: ='E1.1 Proposed Dist Rates '!N17*'E1.2 Billing Determinants'!N17/100 -> 0 | O17: =SUM(E17:N17) -> 658992.4499
C18: RATE 1 - General Service Rate - Industrial | E18: ='E1.1 Proposed Dist Rates '!E18*'E1.2 Billing Determinants'!E18*12 -> 10692 | F18: ='E1.1 Proposed Dist Rates '!F18*'E1.2 Billing Determinants'!F18/100 -> 56412.44319 | G18: ='E1.1 Proposed Dist Rates '!G18*'E1.2 Billing Determinants'!G18/100 -> 133836.4569 | H18: ='E1.1 Proposed Dist Rates '!H18*'E1.2 Billing Determinants'!H18/100 -> 0 | I18: ='E1.1 Proposed Dist Rates '!I18*'E1.2 Billing Determinants'!I18/100 -> 0 | J18: ='E1.1 Proposed Dist Rates '!J18*'E1.2 Billing Determinants'!J18/100 -> 0 | K18: ='E1.1 Proposed Dist Rates '!K18*'E1.2 Billing Determinants'!K18/100 -> 0 | L18: ='E1.1 Proposed Dist Rates '!L18*'E1.2 Billing Determinants'!L18/100 -> 560.803782 | M18: ='E1.1 Proposed Dist Rates '!M18*'E1.2 Billing Determinants'!M18/100 -> 0 | N18: ='E1.1 Proposed Dist Rates '!N18*'E1.2 Billing Determinants'!N18/100 -> 0 | O18: 201501.7039
C19: RATE 2 - Seasonal Service - Apr to Oct | E19: ='E1.1 Proposed Dist Rates '!E19*'E1.2 Billing Determinants'!E19*7 -> 5565 | F19: ='E1.1 Proposed Dist Rates '!F19*'E1.2 Billing Determinants'!F19/100 -> 63571.58856 | G19: ='E1.1 Proposed Dist Rates '!G19*'E1.2 Billing Determinants'!G19/100 -> 0 | H19: ='E1.1 Proposed Dist Rates '!H19*'E1.2 Billing Determinants'!H19/100 -> 96789.28402 | I19: ='E1.1 Proposed Dist Rates '!I19*'E1.2 Billing Determinants'!I19/100 -> 0 | J19: ='E1.1 Proposed Dist Rates '!J19*'E1.2 Billing Determinants'!J19/100 -> 0 | K19: ='E1.1 Proposed Dist Rates '!K19*'E1.2 Billing Determinants'!K19/100 -> 0 | L19: ='E1.1 Proposed Dist Rates '!L19*'E1.2 Billing Determinants'!L19/100 -> 509.651274 | M19: ='E1.1 Proposed Dist Rates '!M19*'E1.2 Billing Determinants'!M19/100 -> 0 | N19: ='E1.1 Proposed Dist Rates '!N19*'E1.2 Billing Determinants'!N19/100 -> 0 | O19: 166435.5239
C20: RATE 2 - Seasonal Service - Nov to Mar | E20: ='E1.1 Proposed Dist Rates '!E20*'E1.2 Billing Determinants'!E20*5 -> 3975 | F20: ='E1.1 Proposed Dist Rates '!F20*'E1.2 Billing Determinants'!F20/100 -> 1205.69338 | G20: ='E1.1 Proposed Dist Rates '!G20*'E1.2 Billing Determinants'!G20/100 -> 0 | H20: ='E1.1 Proposed Dist Rates '!H20*'E1.2 Billing Determinants'!H20/100 -> 6966.161616 | I20: ='E1.1 Proposed Dist Rates '!I20*'E1.2 Billing Determinants'!I20/100 -> 0 | J20: ='E1.1 Proposed Dist Rates '!J20*'E1.2 Billing Determinants'!J20/100 -> 0 | K20: ='E1.1 Proposed Dist Rates '!K20*'E1.2 Billing Determinants'!K20/100 -> 0 | L20: ='E1.1 Proposed Dist Rates '!L20*'E1.2 Billing Determinants'!L20/100 -> 18.204087 | M20: ='E1.1 Proposed Dist Rates '!M20*'E1.2 Billing Determinants'!M20/100 -> 0 | N20: ='E1.1 Proposed Dist Rates '!N20*'E1.2 Billing Determinants'!N20/100 -> 0 | O20: 12165.05908
C21: RATE 3 - Special Large Volume Contract Rate | E21: ='E1.1 Proposed Dist Rates '!E21*'E1.2 Billing Determinants'!E21*12 -> 9000 | F21: ='E1.1 Proposed Dist Rates '!F21*'E1.2 Billing Determinants'!F21/100 -> 0 | G21: ='E1.1 Proposed Dist Rates '!G21*'E1.2 Billing Determinants'!G21/100 -> 0 | H21: ='E1.1 Proposed Dist Rates '!H21*'E1.2 Billing Determinants'!H21/100 -> 0 | I21: ='E1.1 Proposed Dist Rates '!I21*'E1.2 Billing Determinants'!I21/100 -> 0 | J21: ='E1.1 Proposed Dist Rates '!J21*'E1.2 Billing Determinants'!J21/100 -> 62246.20692 | K21: ='E1.1 Proposed Dist Rates '!K21*'E1.2 Billing Determinants'!K21/100 -> 65388.5502 | L21: ='E1.1 Proposed Dist Rates '!L21*'E1.2 Billing Determinants'!L21/100 -> 539.262636 | M21: ='E1.1 Proposed Dist Rates '!M21*'E1.2 Billing Determinants'!M21/100 -> 0 | N21: ='E1.1 Proposed Dist Rates '!N21*'E1.2 Billing Determinants'!N21/100 -> 0 | O21: 137174.0198
C22: RATE 4 - General Service Peaking - Apr to Dec | E22: ='E1.1 Proposed Dist Rates '!E22*'E1.2 Billing Determinants'!E22*9 -> 4860 | F22: ='E1.1 Proposed Dist Rates '!F22*'E1.2 Billing Determinants'!F22/100 -> 38109.23212 | G22: ='E1.1 Proposed Dist Rates '!G22*'E1.2 Billing Determinants'!G22/100 -> 24946.56227 | H22: ='E1.1 Proposed Dist Rates '!H22*'E1.2 Billing Determinants'!H22/100 -> 0 | I22: ='E1.1 Proposed Dist Rates '!I22*'E1.2 Billing Determinants'!I22/100 -> 0 | J22: ='E1.1 Proposed Dist Rates '!J22*'E1.2 Billing Determinants'!J22/100 -> 0 | K22: ='E1.1 Proposed Dist Rates '!K22*'E1.2 Billing Determinants'!K22/100 -> 0 | L22: ='E1.1 Proposed Dist Rates '!L22*'E1.2 Billing Determinants'!L22/100 -> 169.988907 | M22: ='E1.1 Proposed Dist Rates '!M22*'E1.2 Billing Determinants'!M22/100 -> 0 | N22: ='E1.1 Proposed Dist Rates '!N22*'E1.2 Billing Determinants'!N22/100 -> 0 | O22: 68085.78329
C23: RATE 4 - General Service Peaking - Jan to Mar | E23: ='E1.1 Proposed Dist Rates '!E23*'E1.2 Billing Determinants'!E23*3 -> 1620 | F23: ='E1.1 Proposed Dist Rates '!F23*'E1.2 Billing Determinants'!F23/100 -> 23556.12412 | G23: ='E1.1 Proposed Dist Rates '!G23*'E1.2 Billing Determinants'!G23/100 -> 56230.47776 | H23: ='E1.1 Proposed Dist Rates '!H23*'E1.2 Billing Determinants'!H23/100 -> 0 | I23: ='E1.1 Proposed Dist Rates '!I23*'E1.2 Billing Determinants'!I23/100 -> 0 | J23: ='E1.1 Proposed Dist Rates '!J23*'E1.2 Billing Determinants'!J23/100 -> 0 | K23: ='E1.1 Proposed Dist Rates '!K23*'E1.2 Billing Determinants'!K23/100 -> 0 | L23: ='E1.1 Proposed Dist Rates '!L23*'E1.2 Billing Determinants'!L23/100 -> 161.405046 | M23: ='E1.1 Proposed Dist Rates '!M23*'E1.2 Billing Determinants'!M23/100 -> 0 | N23: ='E1.1 Proposed Dist Rates '!N23*'E1.2 Billing Determinants'!N23/100 -> 0 | O23: 81568.00692
C24: RATE 5 - Interruptible Peaking Contract Rate | E24: ='E1.1 Proposed Dist Rates '!E24*'E1.2 Billing Determinants'!E24*12 -> 7200 | F24: ='E1.1 Proposed Dist Rates '!F24*'E1.2 Billing Determinants'!F24/100 -> 0 | G24: ='E1.1 Proposed Dist Rates '!G24*'E1.2 Billing Determinants'!G24/100 -> 0 | H24: ='E1.1 Proposed Dist Rates '!H24*'E1.2 Billing Determinants'!H24/100 -> 0 | I24: ='E1.1 Proposed Dist Rates '!I24*'E1.2 Billing Determinants'!I24/100 -> 0 | J24: ='E1.1 Proposed Dist Rates '!J24*'E1.2 Billing Determinants'!J24/100 -> 40681.33578 | K24: ='E1.1 Proposed Dist Rates '!K24*'E1.2 Billing Determinants'!K24/100 -> 0 | L24: ='E1.1 Proposed Dist Rates '!L24*'E1.2 Billing Determinants'!L24/100 -> 201.063522 | M24: ='E1.1 Proposed Dist Rates '!M24*'E1.2 Billing Determinants'!M24/100 -> 0 | N24: ='E1.1 Proposed Dist Rates '!N24*'E1.2 Billing Determinants'!N24/100 -> 0 | O24: 48082.39931
C25: RATE 6 - Integrated Grain Processors Co-Operative Aylmer Ethanol Production Facility | E25: ='E1.1 Proposed Dist Rates '!E25*'E1.2 Billing Determinants'!E25*12 -> 1800 | F25: ='E1.1 Proposed Dist Rates '!F25*'E1.2 Billing Determinants'!F25/100 -> 0 | G25: ='E1.1 Proposed Dist Rates '!G25*'E1.2 Billing Determinants'!G25/100 -> 0 | H25: ='E1.1 Proposed Dist Rates '!H25*'E1.2 Billing Determinants'!H25/100 -> 0 | I25: ='E1.1 Proposed Dist Rates '!I25*'E1.2 Billing Determinants'!I25/100 -> 0 | J25: ='E1.1 Proposed Dist Rates '!J25*'E1.2 Billing Determinants'!J25/100 -> 1519880.462 | K25: ='E1.1 Proposed Dist Rates '!K25*'E1.2 Billing Determinants'!K25/100 -> 307727.8536 | L25: ='E1.1 Proposed Dist Rates '!L25*'E1.2 Billing Determinants'!L25/100 -> 0 | M25: ='E1.1 Proposed Dist Rates '!M25*'E1.2 Billing Determinants'!M25/100 -> 0 | N25: ='E1.1 Proposed Dist Rates '!N25*'E1.2 Billing Determinants'!N25/100 -> 0 | O25: 1829408.316
E26: =SUM(E16:E25) -> 1439532 | F26: =SUM(F16:F25) -> 2801168.027 | G26: 581895.1606 | H26: 103755.4456 | I26: 0 | J26: 1622808.005 | K26: 373116.4038 | L26: 9066.774057 | M26: 0 | N26: 0 | O26: 6931341.816
N28: Proposed Revenue | O28: =O26 -> 6931341.816
N29: Current Revenue | O29: ='B1.3 Current Rev From Rates'!O26 -> 6815478.678
N30: Change | O30: =O28-O29 -> 115863.1375
O31: =O30/O29 -> 0.017
C33: =MID(CELL("filename",A1),FIND("]",CELL("filename",A1))+1,255) -> E1.3 Proposed Rev From Rate

Sheet F1.1 Calc Shared Tax Changes
C2: ='A1.1 Distributor Information'!C3 -> Name of LDC: EPCOR Natural Gas Limited Partnership
C3: ='A1.1 Distributor Information'!C4 -> OEB Application Number: EB-2018-0235 Exhibit A - 2016 IRM Application Amended October 24, 2018
C10: Tax Change Rate Rider
E14: 2010 | G14: 2011 | I14: 2012 | K14: 2013 | M14: 2014 | O14: 2015 | Q14: 2016 | S14: 2017
C15: Regulatory Taxable Income | E15: 793363 | G15: =E15 -> 793363 | I15: =E15 -> 793363 | K15: =E15 -> 793363 | M15: =E15 -> 793363 | O15: =G15 -> 793363 | Q15: =E15 -> 793363 | S15: =G15 -> 793363
C17: Federal Income Tax Rate | E17: =(0.18/12*3)+(0.165/12*9) -> 0.16875 | G17: =(0.165/12*3)+(0.15/12*9) -> 0.15375 | I17: =0.15 -> 0.15 | K17: =0.15 -> 0.15 | M17: =0.15 -> 0.15 | O17: =0.15 -> 0.15 | Q17: =0.15 -> 0.15 | S17: =0.15 -> 0.15
C18: Federal Income Tax | E18: =E15*E17 -> 133880.0063 | G18: =G15*G17 -> 121979.5612 | I18: =I15*I17 -> 119004.45 | K18: =K15*K17 -> 119004.45 | M18: =M15*M17 -> 119004.45 | O18: =O15*O17 -> 119004.45 | Q18: =Q15*Q17 -> 119004.45 | S18: =S15*S17 -> 119004.45
C20: Provincial Income Tax
C21: Provincial Income Tax Rate - First $500,000 | E21: 0.045 | G21: =E21 -> 0.045 | I21: =G21 -> 0.045 | K21: =I21 -> 0.045 | M21: =I21 -> 0.045 | O21: =K21 -> 0.045
C22: Provincial Income Tax - First $500,000 | E22: =IF(E15>500000,500000*E21,E15*E21) -> 22500 | G22: =IF(G15>500000,500000*G21,G15*G21) -> 22500 | I22: =IF(I15>500000,500000*I21,I15*I21) -> 22500 | K22: =IF(K15>500000,500000*K21,K15*K21) -> 22500 | M22: =IF(M15>500000,500000*M21,M15*M21) -> 22500 | O22: =IF(O15>500000,500000*O21,O15*O21) -> 22500 | Q22: =IF(Q15>500000,500000*Q21,Q15*Q21) -> 0 | S22: =IF(S15>500000,500000*S21,S15*S21) -> 0
C23: Provincial Income Tax Rate - Over $500,000 | E23: 0.11875 | G23: =0.1175/12*9+0.1125/12*3 -> 0.11625 | I23: 0.115 | K23: 0.115 | M23: 0.115 | O23: 0.115 | Q23: 0.115 | S23: 0.115
C24: Provincial Income Tax - Over $500,000 | E24: =IF(E15>500000,(E15-500000)*E23,0) -> 34836.85625 | G24: =IF(G15>500000,(G15-500000)*G23,0) -> 34103.44875 | I24: =IF(I15>500000,(I15-500000)*I23,0) -> 33736.745 | K24: =IF(K15>500000,(K15-500000)*K23,0) -> 33736.745 | M24: =IF(M15>500000,(M15-500000)*M23,0) -> 33736.745 | O24: =IF(O15>500000,(O15-500000)*O23,0) -> 33736.745 | Q24: =Q15*Q23 -> 91236.745 | S24: =S15*S23 -> 91236.745
C26: Total Income Taxes Payable | E26: =E18+E22+E24 -> 191216.8625 | G26: =G18+G22+G24 -> 178583.01 | I26: =I18+I22+I24 -> 175241.195 | K26: =K18+K22+K24 -> 175241.195 | M26: =M18+M22+M24 -> 175241.195 | O26: =O18+O22+O24 -> 175241.195 | Q26: =Q18+Q22+Q24 -> 210241.195 | S26: =S18+S22+S24 -> 210241.195
C27: Effective Tax Rate | E27: =E26/E15 -> 0.2410206457 | G27: =G26/G15 -> 0.225096217 | I27: =I26/I15 -> 0.2208840027 | K27: =K26/K15 -> 0.2208840027 | M27: =M26/M15 -> 0.2208840027 | O27: =O26/O15 -> 0.2208840027 | Q27: =Q26/Q15 -> 0.265 | S27: =S26/S15 -> 0.265
C29: Grossed up Income Tax | E29: =E26/(1-E27) -> 251939.4782 | G29: =G26/(1-G27) -> 230458.3019 | I29: =I26/(1-I27) -> 224923.1123 | K29: =K26/(1-K27) -> 224923.1123 | M29: =M26/(1-M27) -> 224923.1123 | O29: =O26/(1-O27) -> 224923.1123 | Q29: =Q26/(1-Q27) -> 286042.4422 | S29: =S26/(1-S27) -> 286042.4422
C31: Change in Income Taxes | G31: =$E$29-G29 -> 21481.17626 | I31: =$E$29-I29 -> 27016.36586 | K31: =$E$29-K29 -> 27016.36586 | M31: =$E$29-M29 -> 27016.36586 | O31: =$E$29-O29 -> 27016.36586 | Q31: =$E$29-Q29 -> -34102.96397 | S31: =$E$29-S29 -> -34102.96397
C33: 50 % Change in Taxes | G33: =G31/2 -> 10740.58813 | I33: =I31/2 -> 13508.18293 | K33: =K31/2 -> 13508.18293 | M33: =M31/2 -> 13508.18293 | O33: =O31/2 -> 13508.18293 | Q33: =Q31/2 -> -17051.48199 | S33: =S31/2 -> -17051.48199
C38: =MID(CELL("filename",A1),FIND("]",CELL("filename",A1))+1,255) -> F1.1 Calc Shared Tax Changes

Sheet F1.2 Alloc Shared Tax Changes
C2: ='A1.1 Distributor Information'!C3 -> Name of LDC: EPCOR Natural Gas Limited Partnership
C3: ='A1.1 Distributor Information'!C4 -> OEB Application Number: EB-2018-0235 Exhibit A - 2016 IRM Application Amended October 24, 2018
C10: Allocation of Shared Tax Changes
C15: Rate Group | E15: Revenue By Rate Class | G15: Proportionate Revenue | I15: Shared Tax Changes | K15: Number of Customers | M15: Number of Months | O15: Fixed Monthy Rate Rider
C16: RATE 1 - General Service Rate | E16: =SUM('B1.3 Current Rev From Rates'!O16:O18) -> 4511723.41 | G16: =E16/$E$22 -> 0.6619818831 | I16: =$I$22*G16 -> 11287.77216 | K16: =SUM('B1.2 Billing Determinants'!E16:E18) -> 8676 | M16: 12 | O16: =ROUND(I16/K16/M16,4) -> 0.1084
C17: RATE 2 - Seasonal Service | E17: =SUM('B1.3 Current Rev From Rates'!O19:O20) -> 175615.1258 | G17: 0.02576710076 | I17: 439.3672544 | K17: ='B1.2 Billing Determinants'!E19 -> 53 | M17: 12 | O17: 0.6908
C18: RATE 3 - Special Large Volume Contract Rate | E18: ='B1.3 Current Rev From Rates'!O21 -> 134881.042 | G18: 0.01979039894 | I18: 337.4556311 | K18: ='B1.2 Billing Determinants'!E21 -> 5 | M18: 12 | O18: 5.6243
C19: RATE 4 - General Service Peaking | E19: =SUM('B1.3 Current Rev From Rates'!O22:O23) -> 147152.2028 | G19: 0.02159088301 | I19: 368.1565527 | K19: ='B1.2 Billing Determinants'!E22 -> 36 | M19: 12 | O19: 0.8522
C20: RATE 5 - Interruptible Peaking Contract Rate | E20: ='B1.3 Current Rev From Rates'!O24 -> 47278.66205 | G20: 0.006936953996 | I20: 118.2853461 | K20: ='B1.2 Billing Determinants'!E24 -> 4 | M20: 12 | O20: 2.4643
C21: RATE 6 - Integrated Grain Processors Co-Operative Aylmer Ethanol Production Facility | E21: ='B1.3 Current Rev From Rates'!O25 -> 1798828.236 | G21: 0.2639327802 | I21: 4500.445047 | K21: ='B1.2 Billing Determinants'!E25 -> 1 | M21: 12 | O21: 375.0371
E22: =SUM(E16:E21) -> 6815478.678 | G22: =SUM(G16:G21) -> 1 | I22: =-'F1.1 Calc Shared Tax Changes'!S33 -> 17051.48199 | K22: =SUM(K16:K21) -> 8775
C28: =MID(CELL("filename",A1),FIND("]",CELL("filename",A1))+1,255) -> F1.2 Alloc Shared Tax Changes

Sheet F1.3 Proposed Rate Riders
C2: ='A1.1 Distributor Information'!C3 -> Name of LDC: EPCOR Natural Gas Limited Partnership
C3: ='A1.1 Distributor Information'!C4 -> OEB Application Number: EB-2018-0235 Exhibit A - 2016 IRM Application Amended October 24, 2018
C7: Proposed Shared Tax Rate Rider
C9: Description | E9: Shared Tax Changes | G9: Deferred Revenue Recovery
E10: Effective for 12 months | G10: September 30, 2014
E11: $ Per Customer Per Month | G11: Per Customer Per Month
C12: Rate Group
C13: RATE 1 - General Service Rate - Residential | E13: ='F1.2 Alloc Shared Tax Changes'!$O$16 -> 0.1084 | G13: ='F2.1 Deferred Revenue Recovery'!J17 -> 0.3729
C14: RATE 1 - General Service Rate - Commercial | E14: ='F1.2 Alloc Shared Tax Changes'!$O$16 -> 0.1084 | G14: =G13 -> 0.3729
C15: RATE 1 - General Service Rate - Industrial | E15: ='F1.2 Alloc Shared Tax Changes'!$O$16 -> 0.1084 | G15: =G14 -> 0.3729
C16: RATE 2 - Seasonal Service - Apr to Oct | E16: ='F1.2 Alloc Shared Tax Changes'!$O$17 -> 0.6908 | G16: ='F2.1 Deferred Revenue Recovery'!J18 -> 0.2053
C17: RATE 2 - Seasonal Service - Nov to Mar | E17: ='F1.2 Alloc Shared Tax Changes'!$O$17 -> 0.6908 | G17: =G16 -> 0.2053
C18: RATE 3 - Special Large Volume Contract Rate | E18: ='F1.2 Alloc Shared Tax Changes'!$O$18 -> 5.6243 | G18: ='F2.1 Deferred Revenue Recovery'!J19 -> 0.1543
C19: RATE 4 - General Service Peaking - Apr to Dec | E19: ='F1.2 Alloc Shared Tax Changes'!$O$19 -> 0.8522 | G19: ='F2.1 Deferred Revenue Recovery'!J20 -> 0.274
C20: RATE 4 - General Service Peaking - Jan to Mar | E20: ='F1.2 Alloc Shared Tax Changes'!$O$19 -> 0.8522 | G20: =G19 -> 0.274
C21: RATE 5 - Interruptible Peaking Contract Rate | E21: ='F1.2 Alloc Shared Tax Changes'!$O$20 -> 2.4643 | G21: ='F2.1 Deferred Revenue Recovery'!J21 -> 0.1451
C22: RATE 6 - Integrated Grain Processors Co-Operative Aylmer Ethanol Production Facility | E22: ='F1.2 Alloc Shared Tax Changes'!$O$21 -> 375.0371 | G22: ='F2.1 Deferred Revenue Recovery'!J22 -> 0.0796
C28: =MID(CELL("filename",A15),FIND("]",CELL("filename",A15))+1,255) -> F1.3 Proposed Rate Riders

Sheet F2.1 Deferred Revenue Recovery
C2: ='A1.1 Distributor Information'!C3 -> Name of LDC: EPCOR Natural Gas Limited Partnership
C3: ='A1.1 Distributor Information'!C4 -> OEB Application Number: EB-2018-0235 Exhibit A - 2016 IRM Application Amended October 24, 2018
C10: Deferred Revenue Recovery
K12: Impact of October 24 Volume Change
K13: Comparison of revenue applied for July 27 version
C15: Rate Group | D15: Proposed Revenue | E15: Current Revenue | F15: Change In Revenue | G15: Deferred Revenue | H15: Number of Customers | I15: Total Annual Consumption | J15: Proposed Deferred Revenue Recovery Rate Rider cents per m3 | K15: Change in Revenue filed for July 27 | L15: Diference in revenue filed for | M15: Old proposed rate rider | N15: old rate rider at new consumption | O15: Difference in collected revenue | P15: Average Annual $ impact per customer | Q15: Annual average revenue per customer | R15: % of average annual revenue
D16: A | E16: B | F16: C = A- B | G16: D = C / 12 * 12 | H16: E | I16: F | J16: H = D /F | K16: I | L16: J = C - I | M16: K | N16: L = K * F | O16: M = D - L | P16: K = J / E | Q16: L = A / E | R16: M = K / L
C17: ='F1.2 Alloc Shared Tax Changes'!C16 -> RATE 1 - General Service Rate | D17: =SUM('E1.3 Proposed Rev From Rate'!O16:O18) -> 4588422.708 | E17: =SUM('B1.3 Current Rev From Rates'!O16:O18) -> 4511723.41 | F17: =D17-E17 -> 76699.29796 | G17: =F17/12*12 -> 76699.29796 | H17: ='F1.2 Alloc Shared Tax Changes'!K16 -> 8676 | I17: ='E1.2 Billing Determinants'!L16+'E1.2 Billing Determinants'!L17+'E1.2 Billing Determinants'!L18 -> 20570795 | J17: =ROUND(G17/I17*100,4) -> 0.3729 | K17: 82174 | L17: =F17-K17 -> -5474.702036 | M17: 0.3611 | N17: =M17*I17/100 -> 74281.14074 | O17: =G17-N17 -> 2418.157219 | P17: =L17/H17 -> -0.6310168322 | Q17: =D17/H17 -> 528.8638437 | R17: =P17/Q17 -> -0.001193155554
C18: ='F1.2 Alloc Shared Tax Changes'!C17 -> RATE 2 - Seasonal Service | D18: =SUM('E1.3 Proposed Rev From Rate'!O19:O20) -> 178600.5829 | E18: =SUM('B1.3 Current Rev From Rates'!O19:O20) -> 175615.1258 | F18: 2985.457139 | G18: 2985.457139 | H18: ='F1.2 Alloc Shared Tax Changes'!K17 -> 53 | I18: ='E1.2 Billing Determinants'!L19+'E1.2 Billing Determinants'!L20 -> 1454147 | J18: 0.2053 | K18: 2161 | L18: =F18-K18 -> 824.4571387 | M18: 0.2199 | N18: =M18*I18/100 -> 3197.669253 | O18: -212.2121143 | P18: =L18/H18 -> 15.55579507 | Q18: =D18/H18 -> 3369.82232 | R18: =P18/Q18 -> 0.004616206314
C19: ='F1.2 Alloc Shared Tax Changes'!C18 -> RATE 3 - Special Large Volume Contract Rate | D19: ='E1.3 Proposed Rev From Rate'!O21 -> 137174.0198 | E19: ='B1.3 Current Rev From Rates'!O21 -> 134881.042 | F19: 2292.977715 | G19: 2292.977715 | H19: ='F1.2 Alloc Shared Tax Changes'!K18 -> 5 | I19: ='E1.2 Billing Determinants'!L21 -> 1485572 | J19: 0.1543 | K19: 1735 | L19: 557.9777147 | M19: 0.1923 | N19: =M19*I19/100 -> 2856.754956 | O19: -563.7772413 | P19: 111.5955429 | Q19: 27434.80395 | R19: 0.004067663219
C20: ='F1.2 Alloc Shared Tax Changes'!C19 -> RATE 4 - General Service Peaking | D20: =SUM('E1.3 Proposed Rev From Rate'!O22:O23) -> 149653.7902 | E20: =SUM('B1.3 Current Rev From Rates'!O22:O23) -> 147152.2028 | F20: 2501.587447 | G20: 2501.587447 | H20: ='F1.2 Alloc Shared Tax Changes'!K19 -> 36 | I20: ='E1.2 Billing Determinants'!L22+'E1.2 Billing Determinants'!L23 -> 912931 | J20: 0.274 | K20: 2125 | L20: 376.5874471 | M20: 0.2375 | N20: =M20*I20/100 -> 2168.211125 | O20: 333.3763221 | P20: 10.46076242 | Q20: 4157.049728 | R20: 0.002516390975
C21: ='F1.2 Alloc Shared Tax Changes'!C20 -> RATE 5 - Interruptible Peaking Contract Rate | D21: ='E1.3 Proposed Rev From Rate'!O24 -> 48082.39931 | E21: ='B1.3 Current Rev From Rates'!O24 -> 47278.66205 | F21: 803.7372549 | G21: 803.7372549 | H21: ='F1.2 Alloc Shared Tax Changes'!K20 -> 4 | I21: ='E1.2 Billing Determinants'!L24 -> 553894 | J21: 0.1451 | K21: 844 | L21: -40.26274512 | M21: 0.1439 | N21: =M21*I21/100 -> 797.053466 | O21: 6.683788884 | P21: -10.06568628 | Q21: 12020.59983 | R21: -0.0008373697173
C22: ='F1.2 Alloc Shared Tax Changes'!C21 -> RATE 6 - Integrated Grain Processors Co-Operative Aylmer Ethanol Production Facility | D22: ='E1.3 Proposed Rev From Rate'!O25 -> 1829408.316 | E22: ='B1.3 Current Rev From Rates'!O25 -> 1798828.236 | F22: 30580.08001 | G22: 30580.08001 | H22: ='F1.2 Alloc Shared Tax Changes'!K21 -> 1 | I22: ='E1.2 Billing Determinants'!J25 -> 38423518 | J22: 0.0796 | K22: 30580 | L22: 0.08001152403 | M22: 0.0796 | N22: =G22 -> 30580.08001 | O22: 0 | P22: =L22/H22*0 -> 0 | Q22: =D22/H22 -> 1829408.316 | R22: 0
D23: =SUM(D17:D22) -> 6931341.816 | E23: =SUM(E17:E22) -> 6815478.678 | F23: =SUM(F17:F22) -> 115863.1375 | G23: =SUM(G17:G22) -> 115863.1375 | H23: =SUM(H17:H22) -> 8775 | I23: =SUM(I17:I22) -> 63400857 | K23: =SUM(K17:K22) -> 119619 | L23: =SUM(L17:L22) -> -3755.862469 | N23: =SUM(N17:N22) -> 113880.9096 | O23: 1982.227974
F24: =F23/E23 -> 0.017
C28: =MID(CELL("filename",A1),FIND("]",CELL("filename",A1))+1,255) -> F2.1 Deferred Revenue Recovery

Sheet G1.1 Rate 1 Bill Impact
C2: ='A1.1 Distributor Information'!C3 -> Name of LDC: EPCOR Natural Gas Limited Partnership
C3: ='A1.1 Distributor Information'!C4 -> OEB Application Number: EB-2018-0235 Exhibit A - 2016 IRM Application Amended October 24, 2018
C7: Rate 1 Delivery Bill Impact
C10: Rate 1 - Residential | F10: Current Rate | H10: Proposed Rate
C12: Customer | F12: ='B1.1 Current Distribution Rates'!E16 -> 13.5 | H12: ='E1.1 Proposed Dist Rates '!E16 -> 13.5
C13: Block 1 (First 1,000 m3 per month) | F13: ='B1.1 Current Distribution Rates'!F16 -> 16.2312 | H13: ='E1.1 Proposed Dist Rates '!F16 -> 16.65671777
C14: Block 2 (Over 1,000 m3 per month) | F14: ='B1.1 Current Distribution Rates'!G16 -> 10.9099 | H14: ='E1.1 Proposed Dist Rates '!G16 -> 11.0953683
C15: System Gas Charge | F15: ='B1.1 Current Distribution Rates'!L16 -> 0.0363 | H15: ='E1.1 Proposed Dist Rates '!L16 -> 0.0363
C17: Rate Riders
C18: Shared Tax Changes 2015 | F18: ='C1.1 Current Rate Riders'!$E$16 -> 0.13
C19: Shared Tax Changes 2016 | H19: =ROUND('F1.3 Proposed Rate Riders'!$E$13,4) -> 0.1084
C21: Average Annual Consumption
C22: Block 1 (First 1,000 m3 per month) | E22: =ROUND('B1.2 Billing Determinants'!F16/'B1.2 Billing Determinants'!E16,0) -> 1703
C23: Block 2 (Over 1,000 m3 per month) | E23: =ROUND('B1.2 Billing Determinants'!G16/'B1.2 Billing Determinants'!E16,0) -> 101
C25: Delivery | E25: Metric | F25: Current Rate | H25: Proposed Rate | J25: Change $ | L25: Change %
C26: Customer | E26: 12 | F26: =F12*E26 -> 162 | H26: =H12*E26 -> 162 | J26: =H26-F26 -> 0 | L26: =IF(ISERROR(J26/F26),0,J26/F26) -> 0
C27: Block 1 (First 1,000 m3 per month) | E27: =E22 -> 1703 | F27: =F13*E27/100 -> 276.417336 | H27: =H13*E27/100 -> 283.6639036 | J27: =H27-F27 -> 7.246567565 | L27: =IF(ISERROR(J27/F27),0,J27/F27) -> 0.02621603865
C28: Block 2 (Over 1,000 m3 per month) | E28: =E23 -> 101 | F28: =F14*E28/100 -> 11.018999 | H28: =H14*E28/100 -> 11.20632198 | J28: 0.187322983 | L28: =IF(ISERROR(J28/F28),0,J28/F28) -> 0.017
C29: System Gas Charge | E29: =SUM(E27:E28) -> 1804 | F29: =ROUND(F15*E29/100,2) -> 0.65 | H29: =ROUND(H15*E29/100,2) -> 0.65 | J29: 0 | L29: =IF(ISERROR(J29/F29),0,J29/F29) -> 0
C30: Total Delivery | F30: =SUM(F26:F29) -> 450.086335 | H30: =SUM(H26:H29) -> 457.5202255 | J30: 7.433890548 | L30: =IF(ISERROR(J30/F30),0,J30/F30) -> 0.01651658797
C32: Rate Riders
C34: Rate Riders | E34: Metric | F34: Current Rate | H34: Proposed Rate | J34: Change $ | L34: Change %
C35: Shared Tax Changes 2015 | E35: 12 | F35: =F18*E35 -> 1.56 | H35: 0 | J35: =H35-F35 -> -1.56 | L35: =IF(ISERROR(J35/F35),1,J35/F35) -> -1
C36: Shared Tax Changes 2016 | E36: 12 | F36: 0 | H36: =H19*E36 -> 1.3008 | J36: =H36-F36 -> 1.3008 | L36: =IF(ISERROR(J36/F36),1,J36/F36) -> 1
C37: Total Rate Riders | F37: =SUM(F35:F36) -> 1.56 | H37: =SUM(H35:H36) -> 1.3008 | J37: =SUM(J35:J36) -> -0.2592 | L37: =IF(ISERROR(J37/F37),0,J37/F37) -> -0.1661538462
C39: Total Bill Impact | F39: =SUM(F30,F37) -> 451.646335 | H39: =SUM(H30,H37) -> 458.8210255 | J39: =SUM(J30,J37) -> 7.174690548 | L39: =IF(ISERROR(J39/F39),0,J39/F39) -> 0.01588563881
C42: =MID(CELL("filename",A1),FIND("]",CELL("filename",A1))+1,255) -> G1.1 Rate 1 Bill Impact
C44: Rate 1 Delivery Bill Impact
C46: Rate 1 - Commercial | F46: Current Rate | H46: Proposed Rate
C48: Customer | F48: ='B1.1 Current Distribution Rates'!E17 -> 13.5 | H48: ='E1.1 Proposed Dist Rates '!E17 -> 13.5
C49: Block 1 (First 1,000 m3 per month) | F49: ='B1.1 Current Distribution Rates'!F17 -> 16.2312 | H49: ='E1.1 Proposed Dist Rates '!F17 -> 16.65671777
C50: Block 2 (Over 1,000 m3 per month) | F50: ='B1.1 Current Distribution Rates'!G17 -> 10.9099 | H50: ='E1.1 Proposed Dist Rates '!G17 -> 11.0953683
C51: System Gas Charge | F51: ='B1.1 Current Distribution Rates'!L16 -> 0.0363 | H51: ='E1.1 Proposed Dist Rates '!L17 -> 0.0363
C53: Rate Riders
C54: Shared Tax Changes 2015 | F54: ='C1.1 Current Rate Riders'!$E$17 -> 0.13
C55: Shared Tax Changes 2016 | H55: =ROUND('F1.3 Proposed Rate Riders'!E14,4) -> 0.1084
C57: Average Annual Consumption
C58: Block 1 (First 1,000 m3 per month) | E58: =ROUND('B1.2 Billing Determinants'!F17/'B1.2 Billing Determinants'!E17,0) -> 3990
C59: Block 2 (Over 1,000 m3 per month) | E59: =ROUND('B1.2 Billing Determinants'!G17/'B1.2 Billing Determinants'!E17,0) -> 5375
E61: Metric | F61: Current Rate | H61: Proposed Rate | J61: Change $ | L61: Change %
C62: Customer | E62: 12 | F62: =F48*E62 -> 162 | H62: =H48*E62 -> 162 | J62: =H62-F62 -> 0 | L62: =IF(ISERROR(J62/F62),0,J62/F62) -> 0
C63: Block 1 (First 1,000 m3 per month) | E63: =E58 -> 3990 | F63: =F49*E63/100 -> 647.62488 | H63: =H49*E63/100 -> 664.6030389 | J63: =H63-F63 -> 16.97815889 | L63: =IF(ISERROR(J63/F63),0,J63/F63) -> 0.02621603865
C64: Block 2 (Over 1,000 m3 per month) | E64: =E59 -> 5375 | F64: =F50*E64/100 -> 586.407125 | H64: =H50*E64/100 -> 596.3760461 | J64: 9.968921125 | L64: =IF(ISERROR(J64/F64),0,J64/F64) -> 0.017
C65: System Gas Charge | E65: =SUM(E63:E64) -> 9365 | F65: =F51*E65/100 -> 3.399495 | H65: =H51*E65/100 -> 3.399495 | J65: 0 | L65: =IF(ISERROR(J65/F65),0,J65/F65) -> 0
C66: Total Delivery | F66: =SUM(F62:F65) -> 1399.4315 | H66: =SUM(H62:H65) -> 1426.37858 | J66: 26.94708001 | L66: =IF(ISERROR(J66/F66),0,J66/F66) -> 0.0192557335
C68: Rate Riders
C70: Rate Riders | E70: Metric | F70: Current Rate | H70: Proposed Rate | J70: Change $ | L70: Change %
C71: Shared Tax Changes 2015 | E71: 12 | F71: =F54*E71 -> 1.56 | H71: 0 | J71: =H71-F71 -> -1.56 | L71: =IF(ISERROR(J71/F71),1,J71/F71) -> -1
C72: Shared Tax Changes 2016 | E72: 12 | F72: 0 | H72: =H55*E72 -> 1.3008 | J72: =H72-F72 -> 1.3008 | L72: =IF(ISERROR(J72/F72),1,J72/F72) -> 1
C73: Total Rate Riders | F73: =SUM(F71:F72) -> 1.56 | H73: =SUM(H71:H72) -> 1.3008 | J73: =SUM(J71:J72) -> -0.2592 | L73: =IF(ISERROR(J73/F73),0,J73/F73) -> -0.1661538462
C75: Total Bill Impact | F75: =SUM(F66,F73) -> 1400.9915 | H75: =SUM(H66,H73) -> 1427.67938 | J75: =SUM(J66,J73) -> 26.68788001 | L75: =IF(ISERROR(J75/F75),0,J75/F75) -> 0.01904928047
C78: =MID(CELL("filename",A34),FIND("]",CELL("filename",A34))+1,255) -> G1.1 Rate 1 Bill Impact
C83: Rate 1 Delivery Bill Impact
C85: Rate 1 - Industrial | F85: Current Rate | H85: Proposed Rate
C87: Customer | F87: ='B1.1 Current Distribution Rates'!E18 -> 13.5 | H87: ='E1.1 Proposed Dist Rates '!E18 -> 13.5
C88: Block 1 (First 1,000 m3 per month) | F88: ='B1.1 Current Distribution Rates'!F18 -> 16.2312 | H88: ='E1.1 Proposed Dist Rates '!F18 -> 16.65671777
C89: Block 2 (Over 1,000 m3 per month) | F89: ='B1.1 Current Distribution Rates'!G18 -> 10.9099 | H89: ='E1.1 Proposed Dist Rates '!G18 -> 11.0953683
C90: System Gas Charge | F90: ='B1.1 Current Distribution Rates'!L18 -> 0.0363 | H90: ='E1.1 Proposed Dist Rates '!L18 -> 0.0363
C92: Rate Riders
C93: Shared Tax Changes 2015 | F93: ='C1.1 Current Rate Riders'!E18 -> 0.13
C94: Shared Tax Changes 2016 | H94: =ROUND('F1.3 Proposed Rate Riders'!E15,4) -> 0.1084
C96: Average Annual Consumption
C97: Block 1 (First 1,000 m3 per month) | E97: =ROUND('B1.2 Billing Determinants'!F18/'B1.2 Billing Determinants'!E18,0) -> 5131
C98: Block 2 (Over 1,000 m3 per month) | E98: =ROUND('B1.2 Billing Determinants'!G18/'B1.2 Billing Determinants'!E18,0) -> 18276
E100: Metric | F100: Current Rate | H100: Proposed Rate | J100: Change $ | L100: Change %
C101: Customer | E101: 12 | F101: =F87*E101 -> 162 | H101: =H87*E101 -> 162 | J101: =H101-F101 -> 0 | L101: =IF(ISERROR(J101/F101),0,J101/F101) -> 0
C102: Block 1 (First 1,000 m3 per month) | E102: =E97 -> 5131 | F102: =F88*E102/100 -> 832.822872 | H102: =H88*E102/100 -> 854.6561886 | J102: =H102-F102 -> 21.8333166 | L102: =IF(ISERROR(J102/F102),0,J102/F102) -> 0.02621603865
C103: Block 2 (Over 1,000 m3 per month) | E103: =E98 -> 18276 | F103: =F89*E103/100 -> 1993.893324 | H103: =H89*E103/100 -> 2027.789511 | J103: 33.89618651 | L103: =IF(ISERROR(J103/F103),0,J103/F103) -> 0.017
C104: System Gas Charge | E104: =SUM(E102:E103) -> 23407 | F104: =F90*E104/100 -> 8.496741 | H104: =H90*E104/100 -> 8.496741 | J104: 0 | L104: =IF(ISERROR(J104/F104),0,J104/F104) -> 0
C105: Total Delivery | F105: =SUM(F101:F104) -> 2997.212937 | H105: =SUM(H101:H104) -> 3052.94244 | J105: 55.72950311 | L105: =IF(ISERROR(J105/F105),0,J105/F105) -> 0.01859377505
C107: Rate Riders
C109: Rate Riders | E109: Metric | F109: Current Rate | H109: Proposed Rate | J109: Change $ | L109: Change %
C110: Shared Tax Changes 2015 | E110: 12 | F110: =F93*E110 -> 1.56 | H110: 0 | J110: =H110-F110 -> -1.56 | L110: =IF(ISERROR(J110/F110),1,J110/F110) -> -1
C111: Shared Tax Changes 2016 | E111: 12 | F111: 0 | H111: =H94*E111 -> 1.3008 | J111: =H111-F111 -> 1.3008 | L111: =IF(ISERROR(J111/F111),1,J111/F111) -> 1
C112: Total Rate Riders | F112: =SUM(F110:F111) -> 1.56 | H112: =SUM(H110:H111) -> 1.3008 | J112: =SUM(J110:J111) -> -0.2592 | L112: =IF(ISERROR(J112/F112),0,J112/F112) -> -0.1661538462
C114: Total Bill Impact | F114: =SUM(F105,F112) -> 2998.772937 | H114: =SUM(H105,H112) -> 3054.24324 | J114: =SUM(J105,J112) -> 55.47030311 | L114: =IF(ISERROR(J114/F114),0,J114/F114) -> 0.01849766697
C116: =MID(CELL("filename",A68),FIND("]",CELL("filename",A68))+1,255) -> G1.1 Rate 1 Bill Impact

Sheet G1.2 Rate 2 Bill Impact
C2: ='A1.1 Distributor Information'!C3 -> Name of LDC: EPCOR Natural Gas Limited Partnership
C3: ='A1.1 Distributor Information'!C4 -> OEB Application Number: EB-2018-0235 Exhibit A - 2016 IRM Application Amended October 24, 2018
C7: Rate 2 Delivery Bill Impact
C9: Rate 2 - April to October | F9: Current Rate | H9: Proposed Rate
C11: Customer | F11: ='B1.1 Current Distribution Rates'!E19 -> 15 | H11: ='E1.1 Proposed Dist Rates '!E19 -> 15
C12: Block 1 (First 1,000 m3 per month) | F12: ='B1.1 Current Distribution Rates'!F19 -> 15.8212 | H12: ='E1.1 Proposed Dist Rates '!F19 -> 16.58559747
C13: Block 2 (Next 24,000 m3 per month) | F13: ='B1.1 Current Distribution Rates'!H19 -> 9.4826 | H13: ='E1.1 Proposed Dist Rates '!H19 -> 9.4826
C14: Block 3 (Over 25,000 m3 per month) | F14: ='B1.1 Current Distribution Rates'!I19 -> 6.1698 | H14: ='E1.1 Proposed Dist Rates '!I19 -> 6.1698
C15: System Gas Charge | F15: ='B1.1 Current Distribution Rates'!L19 -> 0.0363 | H15: ='E1.1 Proposed Dist Rates '!L20 -> 0.0363
C17: Rate Riders
C18: Shared Tax Changes 2015 | F18: ='C1.1 Current Rate Riders'!$E$19 -> 0.24
C19: Shared Tax Changes 2016 | H19: =ROUND('F1.3 Proposed Rate Riders'!$E$16,4) -> 0.6908
C21: Average Seasonal Consumption
C22: Block 1 (First 1,000 m3 per month) | E22: =ROUND('B1.2 Billing Determinants'!F19/'B1.2 Billing Determinants'!E19,0) -> 7232
C23: Block 2 (Next 24,000 m3 per month) | E23: =ROUND('B1.2 Billing Determinants'!H19/'B1.2 Billing Determinants'!E19,0) -> 19259
C24: Block 3 (Over 25,000 m3 per month) | E24: =ROUND('B1.2 Billing Determinants'!I19/'B1.2 Billing Determinants'!E19,0) -> 0
E26: Metric | F26: Current Rate | H26: Proposed Rate | J26: Change $ | L26: Change %
C27: Customer | E27: 7 | F27: =F11*E27 -> 105 | H27: =H11*E27 -> 105 | J27: =H27-F27 -> 0 | L27: =IF(ISERROR(J27/F27),0,J27/F27) -> 0
C28: Block 1 (First 1,000 m3 per month) | E28: =E22 -> 7232 | F28: =F12*E28/100 -> 1144.189184 | H28: =H12*E28/100 -> 1199.470409 | J28: =H28-F28 -> 55.28122495 | L28: =IF(ISERROR(J28/F28),0,J28/F28) -> 0.04831475924
C29: Block 2 (Next 24,000 m3 per month) | E29: =E23 -> 19259 | F29: =F13*E29/100 -> 1826.253934 | H29: =H13*E29/100 -> 1826.253934 | J29: 0 | L29: =IF(ISERROR(J29/F29),0,J29/F29) -> 0
C30: Block 3 (Over 25,000 m3 per month) | E30: =E24 -> 0 | F30: =F14*E30/100 -> 0 | H30: =H14*E30/100 -> 0 | J30: 0 | L30: 0
C31: System Gas Charge | E31: =SUM(E28:E29) -> 26491 | F31: =F15*E31/100 -> 9.616233 | H31: =H15*E31/100 -> 9.616233 | J31: 0 | L31: =IF(ISERROR(J31/F31),0,J31/F31) -> 0
C32: Total Delivery | F32: =SUM(F27:F31) -> 3085.059351 | H32: =SUM(H27:H31) -> 3140.340576 | J32: 55.28122495 | L32: =IF(ISERROR(J32/F32),0,J32/F32) -> 0.01791901505
C34: Rate Riders
C36: Rate Riders | E36: Metric | F36: Current Rate | H36: Proposed Rate | J36: Change $ | L36: Change %
C37: Shared Tax Changes 2015 | E37: 7 | F37: =F18*E37 -> 1.68 | H37: 0 | J37: =H37-F37 -> -1.68 | L37: =IF(ISERROR(J37/F37),0,J37/F37) -> -1
C38: Shared Tax Changes 2016 | E38: 7 | F38: 0 | H38: =H19*E38 -> 4.8356 | J38: =H38-F38 -> 4.8356 | L38: =IF(ISERROR(J38/F38),0,J38/F38) -> 0
C39: Total Rate Riders | F39: =SUM(F37:F38) -> 1.68 | H39: =SUM(H37:H38) -> 4.8356 | J39: =SUM(J37:J38) -> 3.1556 | L39: 1.878333333
C41: Total Bill Impact | F41: =SUM(F32,F39) -> 3086.739351 | H41: =SUM(H32,H39) -> 3145.176176 | J41: =SUM(J32,J39) -> 58.43682495 | L41: =IF(ISERROR(J41/F41),0,J41/F41) -> 0.01893157093
C43: =MID(CELL("filename",A1),FIND("]",CELL("filename",A1))+1,255) -> G1.2 Rate 2 Bill Impact
C47: Rate 2 Delivery Bill Impact
C49: Rate 2 - November to March | F49: Current Rate | H49: Proposed Rate
C51: Customer | F51: ='B1.1 Current Distribution Rates'!E20 -> 15 | H51: ='E1.1 Proposed Dist Rates '!E20 -> 15
C52: Block 1 (First 1,000 m3 per month) | F52: ='B1.1 Current Distribution Rates'!F20 -> 19.9424 | H52: ='E1.1 Proposed Dist Rates '!F20 -> 20.90591225
C53: Block 2 (Next 24,000 m3 per month) | F53: ='B1.1 Current Distribution Rates'!H20 -> 15.696 | H53: ='E1.1 Proposed Dist Rates '!H20 -> 15.696
C54: Block 3 (Over 25,000 m3 per month) | F54: ='B1.1 Current Distribution Rates'!I20 -> 15.2899 | H54: ='E1.1 Proposed Dist Rates '!I20 -> 15.2899
C55: System Gas Charge | F55: ='B1.1 Current Distribution Rates'!L20 -> 0.0363 | H55: ='E1.1 Proposed Dist Rates '!L20 -> 0.0363
C57: Rate Riders
C58: Shared Tax Changes 2015 | F58: ='C1.1 Current Rate Riders'!$E$20 -> 0.24
C59: Shared Tax Changes 2016 | H59: =ROUND('F1.3 Proposed Rate Riders'!$E$17,4) -> 0.6908
C61: Average Seasonal Consumption
C62: Block 1 (First 1,000 m3 per month) | E62: =ROUND('B1.2 Billing Determinants'!F20/'B1.2 Billing Determinants'!E20,0) -> 109
C63: Block 2 (Next 24,000 m3 per month) | E63: =ROUND('B1.2 Billing Determinants'!H20/'B1.2 Billing Determinants'!E20,0) -> 837
C64: Block 3 (Over 25,000 m3 per month) | E64: =ROUND('B1.2 Billing Determinants'!I20/'B1.2 Billing Determinants'!E20,0) -> 0
E66: Metric | F66: Current Rate | H66: Proposed Rate | J66: Change $ | L66: Change %
C67: Customer | E67: 5 | F67: =F51*E67 -> 75 | H67: =H51*E67 -> 75 | J67: =H67-F67 -> 0 | L67: =IF(ISERROR(J67/F67),0,J67/F67) -> 0
C68: Block 1 (First 1,000 m3 per month) | E68: =E62 -> 109 | F68: =F52*E68/100 -> 21.737216 | H68: =H52*E68/100 -> 22.78744436 | J68: =H68-F68 -> 1.050228358 | L68: 0.04831475924
C69: Block 2 (Next 24,000 m3 per month) | E69: =E63 -> 837 | F69: =F53*E69/100 -> 131.37552 | H69: =H53*E69/100 -> 131.37552 | J69: 0 | L69: 0
C70: Block 3 (Over 25,000 m3 per month) | E70: =E64 -> 0 | F70: =F54*E70/100 -> 0 | H70: =H54*E70/100 -> 0 | J70: =H70-F70 -> 0 | L70: 0
C71: System Gas Charge | E71: =SUM(E68:E69) -> 946 | F71: =F55*E71/100 -> 0.343398 | H71: =H55*E71/100 -> 0.343398 | J71: 0 | L71: 0
C72: Total Delivery | F72: =SUM(F67:F71) -> 228.456134 | H72: =SUM(H67:H71) -> 229.5063624 | J72: 1.050228358 | L72: 0.004597067889
C74: Rate Riders
C76: Rate Riders | E76: Metric | F76: Current Rate | H76: Proposed Rate | J76: Change $ | L76: Change %
C77: Shared Tax Changes 2015 | E77: 5 | F77: =F58*E77 -> 1.2 | H77: 0 | J77: =H77-F77 -> -1.2 | L77: =IF(ISERROR(J77/F77),0,J77/F77) -> -1
C78: Shared Tax Changes 2016 | E78: 5 | F78: 0 | H78: =H59*E78 -> 3.454 | J78: =H78-F78 -> 3.454 | L78: =IF(ISERROR(J78/F78),0,J78/F78) -> 0
C79: Total Rate Riders | F79: =SUM(F77:F78) -> 1.2 | H79: =SUM(H77:H78) -> 3.454 | J79: =SUM(J77:J78) -> 2.254 | L79: 1.878333333
C81: Total Bill Impact | F81: =SUM(F72,F79) -> 229.656134 | H81: =SUM(H72,H79) -> 232.9603624 | J81: =SUM(J72,J79) -> 3.304228358 | L81: =IF(ISERROR(J81/F81),0,J81/F81) -> 0.01438772089
C83: =MID(CELL("filename",A41),FIND("]",CELL("filename",A41))+1,255) -> G1.2 Rate 2 Bill Impact
C85: Rate 2 Delivery Bill Impact
C87: Rate 2 - Annual
C89: Average Annual Consumption
C90: Block 1 (First 1,000 m3 per month) | E90: =E22+E62 -> 7341
C91: Block 2 (Next 24,000 m3 per month) | E91: =E23+E63 -> 20096
C92: Block 3 (Over 25,000 m3 per month) | E92: =E24+E64 -> 0
E94: Metric | F94: Current Rate | H94: Proposed Rate | J94: Change $ | L94: Change %
C95: Customer | E95: =E27+E67 -> 12 | F95: =F27+F67 -> 180 | H95: =H27+H67 -> 180 | J95: =H95-F95 -> 0 | L95: =IF(ISERROR(J95/F95),0,J95/F95) -> 0
C96: Block 1 (First 1,000 m3 per month) | E96: =E90 -> 7341 | F96: =F28+F68 -> 1165.9264 | H96: =H28+H68 -> 1222.257853 | J96: =H96-F96 -> 56.33145331 | L96: 0.04831475924
C97: Block 2 (Next 24,000 m3 per month) | E97: =E91 -> 20096 | F97: =F29+F69 -> 1957.629454 | H97: =H29+H69 -> 1957.629454 | J97: 0 | L97: 0
C98: Block 3 (Over 25,000 m3 per month) | E98: =E92 -> 0 | F98: =F30+F70 -> 0 | H98: =H30+H70 -> 0 | J98: =H98-F98 -> 0 | L98: 0
C99: System Gas Charge | E99: =SUM(E96:E97) -> 27437 | F99: =F31+F71 -> 9.959631 | H99: =H31+H71 -> 9.959631 | J99: 0 | L99: 0
C100: Total Delivery | F100: =SUM(F95:F99) -> 3313.515485 | H100: =SUM(H95:H99) -> 3369.846938 | J100: 56.33145331 | L100: 0.01700051005
C102: Rate Riders
C104: Rate Riders | E104: Metric | F104: Current Rate | H104: Proposed Rate | J104: Change $ | L104: Change %
C105: Shared Tax Changes 2015 | E105: =E37+E77 -> 12 | F105: =F37+F77 -> 2.88 | H105: =H37+H77 -> 0 | J105: =H105-F105 -> -2.88 | L105: =IF(ISERROR(J105/F105),1,J105/F105) -> -1
C106: Shared Tax Changes 2016 | E106: =E38+E78 -> 12 | F106: =F38+F78 -> 0 | H106: =H38+H78 -> 8.2896 | J106: =H106-F106 -> 8.2896 | L106: =IF(ISERROR(J106/F106),1,J106/F106) -> 1
C107: Total Rate Riders | F107: =SUM(F105:F106) -> 2.88 | H107: =SUM(H105:H106) -> 8.2896 | J107: =SUM(J105:J106) -> 5.4096 | L107: =IF(ISERROR(J107/F107),0,J107/F107) -> 1.878333333
C109: Total Bill Impact | F109: =SUM(F100,F107) -> 3316.395485 | H109: =SUM(H100,H107) -> 3378.136538 | J109: =SUM(J100,J107) -> 61.74105331 | L109: =IF(ISERROR(J109/F109),0,J109/F109) -> 0.01861691514
C111: =MID(CELL("filename",A1),FIND("]",CELL("filename",A1))+1,255) -> G1.2 Rate 2 Bill Impact

Sheet G1.3 Rate 3 Bill Impact
C2: ='A1.1 Distributor Information'!C3 -> Name of LDC: EPCOR Natural Gas Limited Partnership
C3: ='A1.1 Distributor Information'!C4 -> OEB Application Number: EB-2018-0235 Exhibit A - 2016 IRM Application Amended October 24, 2018
C10: Rate 3 Delivery Bill Impact
C15: Special Large Volume Contract Rate | F15: Current Rate | H15: Proposed Rate
C17: Customer | F17: ='B1.1 Current Distribution Rates'!E21 -> 150 | H17: ='E1.1 Proposed Dist Rates '!E21 -> 150
C18: Delivery - Firm | F18: ='B1.1 Current Distribution Rates'!J21 -> 4.0357 | H18: ='E1.1 Proposed Dist Rates '!J21 -> 4.19004982
C19: Demand - Firm | F19: ='B1.1 Current Distribution Rates'!K21 -> 29.0974 | H19: ='E1.1 Proposed Dist Rates '!K21 -> 29.0974
C20: System Gas Charge | F20: ='B1.1 Current Distribution Rates'!L21 -> 0.0363 | H20: ='E1.1 Proposed Dist Rates '!L21 -> 0.0363
C22: Rate Riders
C23: Shared Tax Changes 2015 | F23: ='C1.1 Current Rate Riders'!$E$21 -> 10.53
C24: Shared Tax Changes 2016 | H24: =ROUND('F1.3 Proposed Rate Riders'!$E$18,4) -> 5.6243
C26: Average Annual Consumption
C27: Delivery - Firm | E27: =ROUND('B1.2 Billing Determinants'!J21/'B1.2 Billing Determinants'!E21,0) -> 297114
C28: Demand - Firm | E28: =ROUND('B1.2 Billing Determinants'!K21/'B1.2 Billing Determinants'!E21,0) -> 44945
E30: Metric | F30: Current Rate | H30: Proposed Rate | J30: Change $ | L30: Change %
C31: Customer | E31: 12 | F31: =F17*E31 -> 1800 | H31: =H17*E31 -> 1800 | J31: =H31-F31 -> 0 | L31: =IF(ISERROR(J31/F31),0,J31/F31) -> 0
C32: Delivery - Firm | E32: =E27 -> 297114 | F32: =F18*E32/100 -> 11990.6297 | H32: =H18*E32/100 -> 12449.22462 | J32: =H32-F32 -> 458.5949255 | L32: =IF(ISERROR(J32/F32),0,J32/F32) -> 0.03824610859
C33: Demand - Firm | E33: =E28 -> 44945 | F33: =F19*E33/100 -> 13077.82643 | H33: =H19*E33/100 -> 13077.82643 | J33: 0 | L33: =IF(ISERROR(J33/F33),0,J33/F33) -> 0
C34: System Gas Charge | E34: =E27 -> 297114 | F34: =F20*E34/100 -> 107.852382 | H34: =H20*E34/100 -> 107.852382 | J34: 0 | L34: =IF(ISERROR(J34/F34),0,J34/F34) -> 0
C35: Total Delivery | F35: =SUM(F31:F34) -> 26976.30851 | H35: =SUM(H31:H34) -> 27434.90344 | J35: 458.5949255 | L35: =IF(ISERROR(J35/F35),0,J35/F35) -> 0.01699991403
C37: Rate Riders
C39: Rate Riders | E39: Metric | F39: Current Rate | H39: Proposed Rate | J39: Change $ | L39: Change %
C40: Shared Tax Changes 2015 | E40: 12 | F40: =F23*E40 -> 126.36 | H40: 0 | J40: =H40-F40 -> -126.36 | L40: =IF(ISERROR(J40/F40),1,J40/F40) -> -1
C41: Shared Tax Changes 2016 | E41: 12 | F41: 0 | H41: =H24*E41 -> 67.4916 | J41: =H41-F41 -> 67.4916 | L41: =IF(ISERROR(J41/F41),1,J41/F41) -> 1
C42: Total Rate Riders | F42: =SUM(F40:F41) -> 126.36 | H42: =SUM(H40:H41) -> 67.4916 | J42: =SUM(J40:J41) -> -58.8684 | L42: =IF(ISERROR(J42/F42),0,J42/F42) -> -0.4658784425
C44: Total Bill Impact | F44: =SUM(F35,F42) -> 27102.66851 | H44: =SUM(H35,H42) -> 27502.39504 | J44: =SUM(J35,J42) -> 399.7265255 | L44: =IF(ISERROR(J44/F44),0,J44/F44) -> 0.01474860401
C47: =MID(CELL("filename",A1),FIND("]",CELL("filename",A1))+1,255) -> G1.3 Rate 3 Bill Impact

Sheet G1.4 Rate 4 Bill Impact
C2: ='A1.1 Distributor Information'!C3 -> Name of LDC: EPCOR Natural Gas Limited Partnership
C3: ='A1.1 Distributor Information'!C4 -> OEB Application Number: EB-2018-0235 Exhibit A - 2016 IRM Application Amended October 24, 2018
C7: Rate 4 Delivery Bill Impact
C11: Rate 4 - April to December | F11: Current Rate | H11: Proposed Rate
C13: Customer | F13: ='B1.1 Current Distribution Rates'!E22 -> 15 | H13: ='E1.1 Proposed Dist Rates '!E22 -> 15
C14: Block 1 (First 1,000 m3 per month) | F14: ='B1.1 Current Distribution Rates'!F22 -> 15.8149 | H14: ='E1.1 Proposed Dist Rates '!F22 -> 16.48359228
C15: Block 2 (Over 1,000 m3 per month) | F15: ='B1.1 Current Distribution Rates'!G22 -> 10.5218 | H15: ='E1.1 Proposed Dist Rates '!G22 -> 10.5218
C16: System Gas Charge | F16: ='B1.1 Current Distribution Rates'!L19 -> 0.0363 | H16: ='E1.1 Proposed Dist Rates '!L22 -> 0.0363
C18: Rate Riders
C19: Shared Tax Changes 2015 | F19: ='C1.1 Current Rate Riders'!$E$22 -> 0.69
C20: Shared Tax Changes 2016 | H20: =ROUND('F1.3 Proposed Rate Riders'!$E$19,4) -> 0.8522
C22: Average Seasonal Consumption
C23: Block 1 (First 1,000 m3 per month) | E23: =ROUND('B1.2 Billing Determinants'!F22/'B1.2 Billing Determinants'!E22,0) -> 6422
C24: Block 2 (Over 1,000 m3 per month) | E24: =ROUND('B1.2 Billing Determinants'!G22/'B1.2 Billing Determinants'!E22,0) -> 6586
E26: Metric | F26: Current Rate | H26: Proposed Rate | J26: Change $ | L26: Change %
C27: Customer | E27: 9 | F27: =F13*E27 -> 135 | H27: =H13*E27 -> 135 | J27: =H27-F27 -> 0 | L27: =IF(ISERROR(J27/F27),0,J27/F27) -> 0
C28: Block 1 (First 1,000 m3 per month) | E28: =E23 -> 6422 | F28: =F14*E28/100 -> 1015.632878 | H28: =H14*E28/100 -> 1058.576296 | J28: =H28-F28 -> 42.94341808 | L28: =IF(ISERROR(J28/F28),0,J28/F28) -> 0.04228242214
C29: Block 2 (Over 1,000 m3 per month) | E29: =E24 -> 6586 | F29: =F15*E29/100 -> 692.965748 | H29: =H15*E29/100 -> 692.965748 | J29: 0 | L29: =IF(ISERROR(J29/F29),0,J29/F29) -> 0
C30: System Gas Charge | E30: =SUM(E28:E29) -> 13008 | F30: =F16*E30/100 -> 4.721904 | H30: =H16*E30/100 -> 4.721904 | J30: 0 | L30: =IF(ISERROR(J30/F30),0,J30/F30) -> 0
C31: Total Delivery | F31: =SUM(F27:F30) -> 1848.32053 | H31: =SUM(H27:H30) -> 1891.263948 | J31: 42.94341808 | L31: =IF(ISERROR(J31/F31),0,J31/F31) -> 0.02323375052
C33: Rate Riders
C35: Rate Riders | E35: Metric | F35: Current Rate | H35: Proposed Rate | J35: Change $ | L35: Change %
C36: Shared Tax Changes 2015 | E36: 9 | F36: =F19*E36 -> 6.21 | H36: 0 | J36: =H36-F36 -> -6.21 | L36: =IF(ISERROR(J36/F36),1,J36/F36) -> -1
C37: Shared Tax Changes 2016 | E37: 9 | F37: 0 | H37: =H20*E37 -> 7.6698 | J37: =H37-F37 -> 7.6698 | L37: =IF(ISERROR(J37/F37),1,J37/F37) -> 1
C38: Total Rate Riders | F38: =SUM(F36:F37) -> 6.21 | H38: =SUM(H36:H37) -> 7.6698 | J38: =SUM(J36:J37) -> 1.4598 | L38: =IF(ISERROR(J38/F38),0,J38/F38) -> 0.2350724638
C40: Total Bill Impact | F40: =SUM(F31,F38) -> 1854.53053 | H40: =SUM(H31,H38) -> 1898.933748 | J40: =SUM(J31,J38) -> 44.40321808 | L40: =IF(ISERROR(J40/F40),0,J40/F40) -> 0.0239431044
C43: =MID(CELL("filename",A1),FIND("]",CELL("filename",A1))+1,255) -> G1.4 Rate 4 Bill Impact
C45: Rate 4 Delivery Bill Impact
C47: Rate 4 - January to March | F47: Current Rate | H47: Proposed Rate
C49: Customer | F49: ='B1.1 Current Distribution Rates'!E23 -> 15 | H49: ='E1.1 Proposed Dist Rates '!E23 -> 15
C50: Block 1 (First 1,000 m3 per month) | F50: ='B1.1 Current Distribution Rates'!F23 -> 20.1755 | H50: ='E1.1 Proposed Dist Rates '!F23 -> 21.02856901
C51: Block 2 (Over 1,000 m3 per month) | F51: ='B1.1 Current Distribution Rates'!G23 -> 16.9052 | H51: ='E1.1 Proposed Dist Rates '!G23 -> 16.9052
C52: System Gas Charge | F52: ='B1.1 Current Distribution Rates'!L23 -> 0.0363 | H52: ='E1.1 Proposed Dist Rates '!L23 -> 0.0363
C54: Rate Riders
C55: Shared Tax Changes 2015 | F55: ='C1.1 Current Rate Riders'!$E$23 -> 0.69
C56: Shared Tax Changes 2016 | H56: =ROUND('F1.3 Proposed Rate Riders'!$E$20,4) -> 0.8522
C58: Average Seasonal Consumption
C59: Block 1 (First 1,000 m3 per month) | E59: =ROUND('B1.2 Billing Determinants'!F23/'B1.2 Billing Determinants'!E23,0) -> 3112
C60: Block 2 (Over 1,000 m3 per month) | E60: =ROUND('B1.2 Billing Determinants'!G23/'B1.2 Billing Determinants'!E23,0) -> 9240
E62: Metric | F62: Current Rate | H62: Proposed Rate | J62: Change $ | L62: Change %
C63: Customer | E63: 3 | F63: =F49*E63 -> 45 | H63: =H49*E63 -> 45 | J63: =H63-F63 -> 0 | L63: =IF(ISERROR(J63/F63),0,J63/F63) -> 0
C64: Block 1 (First 1,000 m3 per month) | E64: =E59 -> 3112 | F64: =F50*E64/100 -> 627.86156 | H64: =H50*E64/100 -> 654.4090675 | J64: =H64-F64 -> 26.54750752 | L64: 0.04228242214
C65: Block 2 (Over 1,000 m3 per month) | E65: =E60 -> 9240 | F65: =F51*E65/100 -> 1562.04048 | H65: =H51*E65/100 -> 1562.04048 | J65: 0 | L65: 0
C66: System Gas Charge | E66: =SUM(E64:E65) -> 12352 | F66: =F52*E66/100 -> 4.483776 | H66: =H52*E66/100 -> 4.483776 | J66: 0 | L66: 0
C67: Total Delivery | F67: =SUM(F63:F66) -> 2239.385816 | H67: =SUM(H63:H66) -> 2265.933324 | J67: 26.54750752 | L67: 0.01185481632
C69: Rate Riders
C71: Rate Riders | E71: Metric | F71: Current Rate | H71: Proposed Rate | J71: Change $ | L71: Change %
C72: Shared Tax Changes 2015 | E72: 3 | F72: =F55*E72 -> 2.07 | H72: 0 | J72: =H72-F72 -> -2.07 | L72: =IF(ISERROR(J72/F72),1,J72/F72) -> -1
C73: Shared Tax Changes 2016 | E73: 3 | F73: 0 | H73: =H56*E73 -> 2.5566 | J73: =H73-F73 -> 2.5566 | L73: =IF(ISERROR(J73/F73),1,J73/F73) -> 1
C74: Total Rate Riders | F74: =SUM(F72:F73) -> 2.07 | H74: =SUM(H72:H73) -> 2.5566 | J74: =SUM(J72:J73) -> 0.4866 | L74: =IF(ISERROR(J74/F74),0,J74/F74) -> 0.2350724638
C76: Total Bill Impact | F76: =SUM(F67,F74) -> 2241.455816 | H76: =SUM(H67,H74) -> 2268.489924 | J76: =SUM(J67,J74) -> 27.03410752 | L76: =IF(ISERROR(J76/F76),0,J76/F76) -> 0.01206095937
C79: =MID(CELL("filename",A33),FIND("]",CELL("filename",A33))+1,255) -> G1.4 Rate 4 Bill Impact
C81: Rate 4 Delivery Bill Impact
C83: Rate 4 - Annual
C85: Average Annual Consumption
C86: Block 1 (First 1,000 m3 per month) | E86: =E23+E59 -> 9534
C87: Block 2 (Over 1,000 m3 per month) | E87: =E24+E60 -> 15826
E89: Metric | F89: Current Rate | H89: Proposed Rate | J89: Change $ | L89: Change %
C90: Customer | E90: =E27+E63 -> 12 | F90: =F27+F63 -> 180 | H90: =H27+H63 -> 180 | J90: =H90-F90 -> 0 | L90: =IF(ISERROR(J90/F90),0,J90/F90) -> 0
C91: Block 1 (First 1,000 m3 per month) | E91: =E86 -> 9534 | F91: =F28+F64 -> 1643.494438 | H91: =H28+H64 -> 1712.985364 | J91: =H91-F91 -> 69.49092561 | L91: 0.04228242214
C92: Block 2 (Over 1,000 m3 per month) | E92: =E87 -> 15826 | F92: =F29+F65 -> 2255.006228 | H92: =H29+H65 -> 2255.006228 | J92: 0 | L92: 0
C93: System Gas Charge | E93: =SUM(E91:E92) -> 25360 | F93: =F30+F66 -> 9.20568 | H93: =H30+H66 -> 9.20568 | J93: 0 | L93: 0
C94: Total Delivery | F94: =SUM(F90:F93) -> 4087.706346 | H94: =SUM(H90:H93) -> 4157.197272 | J94: 69.49092561 | L94: 0.01699997987
C96: Rate Riders
C98: Rate Riders | E98: Metric | F98: Current Rate | H98: Proposed Rate | J98: Change $ | L98: Change %
C99: Shared Tax Changes 2015 | E99: =E72+E36 -> 12 | F99: =F72+F36 -> 8.28 | H99: =H72+H36 -> 0 | J99: =H99-F99 -> -8.28 | L99: =IF(ISERROR(J99/F99),1,J99/F99) -> -1
C100: Shared Tax Changes 2016 | E100: =E73+E37 -> 12 | F100: =F73+F37 -> 0 | H100: =H73+H37 -> 10.2264 | J100: =H100-F100 -> 10.2264 | L100: =IF(ISERROR(J100/F100),1,J100/F100) -> 1
C101: Total Rate Riders | F101: =SUM(F99:F100) -> 8.28 | H101: =SUM(H99:H100) -> 10.2264 | J101: =SUM(J99:J100) -> 1.9464 | L101: =IF(ISERROR(J101/F101),0,J101/F101) -> 0.2350724638
C103: Total Bill Impact | F103: =SUM(F94,F101) -> 4095.986346 | H103: =SUM(H94,H101) -> 4167.423672 | J103: =SUM(J94,J101) -> 71.43732561 | L103: =IF(ISERROR(J103/F103),0,J103/F103) -> 0.01744081146
C106: =MID(CELL("filename",A61),FIND("]",CELL("filename",A61))+1,255) -> G1.4 Rate 4 Bill Impact

Sheet G1.5 Rate 5 Bill Impact
C2: ='A1.1 Distributor Information'!C3 -> Name of LDC: EPCOR Natural Gas Limited Partnership
C3: ='A1.1 Distributor Information'!C4 -> OEB Application Number: EB-2018-0235 Exhibit A - 2016 IRM Application Amended October 24, 2018
C10: Rate 5 Delivery Bill Impact
C15: Interruptible Peaking Contract Rate | F15: Current Rate | H15: Proposed Rate
C17: Customer | F17: ='B1.1 Current Distribution Rates'!E24 -> 150 | H17: ='E1.1 Proposed Dist Rates '!E24 -> 150
C18: Delivery - Firm | F18: ='B1.1 Current Distribution Rates'!J24 -> 7.1995 | H18: ='E1.1 Proposed Dist Rates '!J24 -> 7.344606691
C19: System Gas Charge | F19: ='B1.1 Current Distribution Rates'!L24 -> 0.0363 | H19: ='E1.1 Proposed Dist Rates '!L24 -> 0.0363
C21: Rate Riders
C22: Shared Tax Changes 2015 | F22: ='C1.1 Current Rate Riders'!$E$24 -> 3.81
C23: Shared Tax Changes 2016 | H23: =ROUND('F1.3 Proposed Rate Riders'!$E$21,4) -> 2.4643
C25: Average Annual Consumption
C26: Delivery - Firm | E26: =ROUND('B1.2 Billing Determinants'!J24/'B1.2 Billing Determinants'!E24,0) -> 138474
E28: Metric | F28: Current Rate | H28: Proposed Rate | J28: Change $ | L28: Change %
C29: Customer | E29: 12 | F29: =F17*E29 -> 1800 | H29: =H17*E29 -> 1800 | J29: =H29-F29 -> 0 | L29: =IF(ISERROR(J29/F29),0,J29/F29) -> 0
C30: Delivery - Firm | E30: =E26 -> 138474 | F30: =F18*E30/100 -> 9969.43563 | H30: =H18*E30/100 -> 10170.37067 | J30: =H30-F30 -> 200.9350393 | L30: =IF(ISERROR(J30/F30),0,J30/F30) -> 0.02015510674
C31: System Gas Charge | E31: =E26 -> 138474 | F31: =F19*E31/100 -> 50.266062 | H31: =H19*E31/100 -> 50.266062 | J31: 0 | L31: =IF(ISERROR(J31/F31),0,J31/F31) -> 0
C32: Total Delivery | F32: =SUM(F29:F31) -> 11819.70169 | H32: =SUM(H29:H31) -> 12020.63673 | J32: 200.9350393 | L32: =IF(ISERROR(J32/F32),0,J32/F32) -> 0.01700000935
C34: Rate Riders
C36: Rate Riders | E36: Metric | F36: Current Rate | H36: Proposed Rate | J36: Change $ | L36: Change %
C37: Shared Tax Changes 2015 | E37: 12 | F37: =F22*E37 -> 45.72 | H37: 0 | J37: =H37-F37 -> -45.72 | L37: =IF(ISERROR(J37/F37),1,J37/F37) -> -1
C38: Shared Tax Changes 2016 | E38: 12 | F38: 0 | H38: =H23*E38 -> 29.5716 | J38: =H38-F38 -> 29.5716 | L38: =IF(ISERROR(J38/F38),1,J38/F38) -> 1
C39: Total Rate Riders | F39: =SUM(F37:F38) -> 45.72 | H39: =SUM(H37:H38) -> 29.5716 | J39: =SUM(J37:J38) -> -16.1484 | L39: =IF(ISERROR(J39/F39),0,J39/F39) -> -0.3532020997
C41: Total Bill Impact | F41: =SUM(F32,F39) -> 11865.42169 | H41: =SUM(H32,H39) -> 12050.20833 | J41: =SUM(J32,J39) -> 184.7866393 | L41: =IF(ISERROR(J41/F41),0,J41/F41) -> 0.01557354168
C44: =MID(CELL("filename",A1),FIND("]",CELL("filename",A1))+1,255) -> G1.5 Rate 5 Bill Impact

Sheet G1.6 Rate 6 Bill Impact
C2: ='A1.1 Distributor Information'!C3 -> Name of LDC: EPCOR Natural Gas Limited Partnership
C3: ='A1.1 Distributor Information'!C4 -> OEB Application Number: EB-2018-0235 Exhibit A - 2016 IRM Application Amended October 24, 2018
C10: Rate 6 Delivery Bill Impact
C15: Special Large Volume Contract Rate | F15: Current Rate | H15: Proposed Rate
C17: Customer | F17: ='B1.1 Current Distribution Rates'!E25 -> 150 | H17: ='E1.1 Proposed Dist Rates '!E25 -> 150
C18: Delivery - Firm | F18: ='B1.1 Current Distribution Rates'!J25 -> 3.8894 | H18: ='E1.1 Proposed Dist Rates '!J25 -> 3.955599439
C19: Demand - Firm | F19: ='B1.1 Current Distribution Rates'!K25 -> 18.8392 | H19: ='E1.1 Proposed Dist Rates '!K25 -> 19.1594664
C21: Rate Riders
C22: Shared Tax Changes 2015 | F22: ='C1.1 Current Rate Riders'!$E$25 -> 380.13
C23: Shared Tax Changes 2016 | H23: =ROUND('F1.3 Proposed Rate Riders'!$E$22,4) -> 375.0371
C25: Average Annual Consumption
C26: Delivery - Firm | E26: ='B1.2 Billing Determinants'!J25 -> 38423518
C27: Demand - Firm | E27: ='B1.2 Billing Determinants'!K25 -> 1606140
E29: Metric | F29: Current Rate | H29: Proposed Rate | J29: Change $ | L29: Change %
C30: Customer | E30: 12 | F30: =F17*E30 -> 1800 | H30: =H17*E30 -> 1800 | J30: =H30-F30 -> 0 | L30: =IF(ISERROR(J30/F30),0,J30/F30) -> 0
C31: Delivery - Firm | E31: =E26 -> 38423518 | F31: =F18*E31/100 -> 1494444.309 | H31: =H18*E31/100 -> 1519880.462 | J31: =H31-F31 -> 25436.15325 | L31: =IF(ISERROR(J31/F31),0,J31/F31) -> 0.01702047584
C32: Demand - Firm | E32: =E27 -> 1606140 | F32: =F19*E32/100 -> 302583.9269 | H32: =H19*E32/100 -> 307727.8536 | J32: 5143.926757 | L32: =IF(ISERROR(J32/F32),0,J32/F32) -> 0.017
C33: Total Delivery | F33: =SUM(F30:F32) -> 1798828.236 | H33: =SUM(H30:H32) -> 1829408.316 | J33: 30580.08001 | L33: =IF(ISERROR(J33/F33),0,J33/F33) -> 0.017
C35: Rate Riders
C37: Rate Riders | E37: Metric | F37: Current Rate | H37: Proposed Rate | J37: Change $ | L37: Change %
C38: Shared Tax Changes 2015 | E38: 12 | F38: =F22*E38 -> 4561.56 | H38: 0 | J38: =H38-F38 -> -4561.56 | L38: =IF(ISERROR(J38/F38),1,J38/F38) -> -1
C39: Shared Tax Changes 2016 | E39: 12 | F39: 0 | H39: =H23*E39 -> 4500.4452 | J39: =H39-F39 -> 4500.4452 | L39: =IF(ISERROR(J39/F39),1,J39/F39) -> 1
C40: Total Rate Riders | F40: =SUM(F38:F39) -> 4561.56 | H40: =SUM(H38:H39) -> 4500.4452 | J40: =SUM(J38:J39) -> -61.1148 | L40: =IF(ISERROR(J40/F40),0,J40/F40) -> -0.01339778497
C42: Total Bill Impact | F42: =SUM(F33,F40) -> 1803389.796 | H42: =SUM(H33,H40) -> 1833908.761 | J42: =SUM(J33,J40) -> 30518.96521 | L42: =IF(ISERROR(J42/F42),0,J42/F42) -> 0.01692311073
C45: =MID(CELL("filename",A1),FIND("]",CELL("filename",A1))+1,255) -> G1.6 Rate 6 Bill Impact

Sheet G1.7 Summary of Bill Impacts
C2: ='A1.1 Distributor Information'!C3 -> Name of LDC: EPCOR Natural Gas Limited Partnership
C3: ='A1.1 Distributor Information'!C4 -> OEB Application Number: EB-2018-0235 Exhibit A - 2016 IRM Application Amended October 24, 2018
C5: Summary of Bill Impacts
C7: Rate Class | D7: Fixed Change | E7: Volumetric Change | F7: Shared Tax Rate Rider | G7: Total Change $ | H7: Total Change %
C9: Rate 1 - Residential | D9: ='G1.1 Rate 1 Bill Impact'!J26 -> 0 | E9: =SUM('G1.1 Rate 1 Bill Impact'!J27:J29) -> 7.433890548 | F9: =SUM('G1.1 Rate 1 Bill Impact'!J37) -> -0.2592 | G9: ='G1.1 Rate 1 Bill Impact'!J39 -> 7.174690548 | H9: ='G1.1 Rate 1 Bill Impact'!L39 -> 0.01588563881
C10: Rate 1 - Commercial | D10: ='G1.1 Rate 1 Bill Impact'!J62 -> 0 | E10: =SUM('G1.1 Rate 1 Bill Impact'!J63:J65) -> 26.94708001 | F10: ='G1.1 Rate 1 Bill Impact'!J73 -> -0.2592 | G10: ='G1.1 Rate 1 Bill Impact'!J75 -> 26.68788001 | H10: ='G1.1 Rate 1 Bill Impact'!L75 -> 0.01904928047
C11: Rate 1 - Industrial | D11: ='G1.1 Rate 1 Bill Impact'!J101 -> 0 | E11: =SUM('G1.1 Rate 1 Bill Impact'!J102:J104) -> 55.72950311 | F11: ='G1.1 Rate 1 Bill Impact'!J112 -> -0.2592 | G11: ='G1.1 Rate 1 Bill Impact'!J114 -> 55.47030311 | H11: ='G1.1 Rate 1 Bill Impact'!L114 -> 0.01849766697
C13: ='G1.2 Rate 2 Bill Impact'!C9 -> Rate 2 - April to October | D13: ='G1.2 Rate 2 Bill Impact'!J27 -> 0 | E13: ='G1.2 Rate 2 Bill Impact'!J32-'G1.7 Summary of Bill Impacts'!D13 -> 55.28122495 | F13: ='G1.2 Rate 2 Bill Impact'!J39 -> 3.1556 | G13: =SUM(D13:F13) -> 58.43682495 | H13: ='G1.2 Rate 2 Bill Impact'!L41 -> 0.01893157093
C14: ='G1.2 Rate 2 Bill Impact'!C49 -> Rate 2 - November to March | D14: ='G1.2 Rate 2 Bill Impact'!J67 -> 0 | E14: ='G1.2 Rate 2 Bill Impact'!J72-'G1.7 Summary of Bill Impacts'!D14 -> 1.050228358 | F14: ='G1.2 Rate 2 Bill Impact'!J79 -> 2.254 | G14: =SUM(D14:F14) -> 3.304228358 | H14: ='G1.2 Rate 2 Bill Impact'!L81 -> 0.01438772089
C15: ='G1.2 Rate 2 Bill Impact'!C87 -> Rate 2 - Annual | D15: ='G1.2 Rate 2 Bill Impact'!J95 -> 0 | E15: ='G1.2 Rate 2 Bill Impact'!J100-'G1.7 Summary of Bill Impacts'!D15 -> 56.33145331 | F15: ='G1.2 Rate 2 Bill Impact'!J107 -> 5.4096 | G15: =SUM(D15:F15) -> 61.74105331 | H15: ='G1.2 Rate 2 Bill Impact'!L109 -> 0.01861691514
C17: ="Rate 3 - "& 'G1.3 Rate 3 Bill Impact'!C15 -> Rate 3 - Special Large Volume Contract Rate | D17: ='G1.3 Rate 3 Bill Impact'!J31 -> 0 | E17: ='G1.3 Rate 3 Bill Impact'!J35-'G1.7 Summary of Bill Impacts'!D17 -> 458.5949255 | F17: ='G1.3 Rate 3 Bill Impact'!J42 -> -58.8684 | G17: =SUM(D17:F17) -> 399.7265255 | H17: ='G1.3 Rate 3 Bill Impact'!L44 -> 0.01474860401
C19: ='G1.4 Rate 4 Bill Impact'!C11 -> Rate 4 - April to December | D19: ='G1.4 Rate 4 Bill Impact'!J27 -> 0 | E19: ='G1.4 Rate 4 Bill Impact'!J31-'G1.7 Summary of Bill Impacts'!D19 -> 42.94341808 | F19: ='G1.4 Rate 4 Bill Impact'!J38 -> 1.4598 | G19: =SUM(D19:F19) -> 44.40321808 | H19: ='G1.4 Rate 4 Bill Impact'!L40 -> 0.0239431044
C20: ='G1.4 Rate 4 Bill Impact'!C47 -> Rate 4 - January to March | D20: ='G1.4 Rate 4 Bill Impact'!J63 -> 0 | E20: ='G1.4 Rate 4 Bill Impact'!J67-'G1.7 Summary of Bill Impacts'!D20 -> 26.54750752 | F20: ='G1.4 Rate 4 Bill Impact'!J74 -> 0.4866 | G20: =SUM(D20:F20) -> 27.03410752 | H20: ='G1.4 Rate 4 Bill Impact'!L76 -> 0.01206095937
C21: ='G1.4 Rate 4 Bill Impact'!C83 -> Rate 4 - Annual | D21: ='G1.4 Rate 4 Bill Impact'!J90 -> 0 | E21: ='G1.4 Rate 4 Bill Impact'!J94-'G1.7 Summary of Bill Impacts'!D21 -> 69.49092561 | F21: ='G1.4 Rate 4 Bill Impact'!J101 -> 1.9464 | G21: =SUM(D21:F21) -> 71.43732561 | H21: ='G1.4 Rate 4 Bill Impact'!L103 -> 0.01744081146
C23: ="Rate 5 - " &'G1.5 Rate 5 Bill Impact'!C15 -> Rate 5 - Interruptible Peaking Contract Rate | D23: ='G1.5 Rate 5 Bill Impact'!J29 -> 0 | E23: ='G1.5 Rate 5 Bill Impact'!J32-'G1.7 Summary of Bill Impacts'!D23 -> 200.9350393 | F23: ='G1.5 Rate 5 Bill Impact'!J39 -> -16.1484 | G23: =SUM(D23:F23) -> 184.7866393 | H23: ='G1.5 Rate 5 Bill Impact'!L41 -> 0.01557354168
C25: ="Rate 6 - " &'G1.6 Rate 6 Bill Impact'!C15 -> Rate 6 - Special Large Volume Contract Rate | D25: ='G1.6 Rate 6 Bill Impact'!J30 -> 0 | E25: ='G1.6 Rate 6 Bill Impact'!J33-'G1.7 Summary of Bill Impacts'!D25 -> 30580.08001 | F25: ='G1.6 Rate 6 Bill Impact'!J40 -> -61.1148 | G25: =SUM(D25:F25) -> 30518.96521 | H25: ='G1.6 Rate 6 Bill Impact'!L42 -> 0.01692311073
C30: =MID(CELL("filename",A1),FIND("]",CELL("filename",A1))+1,255) -> G1.7 Summary of Bill Impacts
